Department family,Entity,Date,Expense Type,Expense area,Supplier,Transaction number,AP Amount (�)
Department of Health,NHS Sheffield CCG,31/08/2018,C&M-PMS Contract Value,PRC DELEGATED CO-COMMISSIONING,ABBEY LANE SURGERY,23396682,"23,509.84 "
Department of Health,NHS Sheffield CCG,31/08/2018,C&M-PMS DES Minor Surgery,PRC DELEGATED CO-COMMISSIONING,ABBEY LANE SURGERY,23396682,"1,195.00 "
Department of Health,NHS Sheffield CCG,31/08/2018,C&M-PMS Prem Notional Rent,PRC DELEGATED CO-COMMISSIONING,ABBEY LANE SURGERY,23396682,"2,122.92 "
Department of Health,NHS Sheffield CCG,31/08/2018,C&M-PMS Prem Rates,PRC DELEGATED CO-COMMISSIONING,ABBEY LANE SURGERY,23396682,744.00 
Department of Health,NHS Sheffield CCG,31/08/2018,C&M-PMS QOF Aspiration,PRC DELEGATED CO-COMMISSIONING,ABBEY LANE SURGERY,23396682,"2,572.92 "
Department of Health,NHS Sheffield CCG,31/08/2018,Cont Care-Physical Disab (65+),CHC ADULT FULLY FUNDED,ABBEYCARE NURSING,23343731,"51,285.78 "
Department of Health,NHS Sheffield CCG,31/08/2018,Cont Care-Physical Disab (<65),CHC ADULT FULLY FUNDED,ALPINE HEALTH CARE,23364688,"25,155.12 "
Department of Health,NHS Sheffield CCG,31/08/2018,Contract & Agency-Agency Int Mgr,BEREAVEMENT SERVICE,ATTAIN HEALTH MANAGEMENT SERVICES LTD,23325018,"22,896.01 "
Department of Health,NHS Sheffield CCG,31/08/2018,Hotel And Accomodation Costs,BEREAVEMENT SERVICE,ATTAIN HEALTH MANAGEMENT SERVICES LTD,23325018,"1,455.95 "
Department of Health,NHS Sheffield CCG,31/08/2018,Oth Travel Costs-Car Mileage,BEREAVEMENT SERVICE,ATTAIN HEALTH MANAGEMENT SERVICES LTD,23325018,"1,651.33 "
Department of Health,NHS Sheffield CCG,31/08/2018,Other Travel Costs - Car Parking,BEREAVEMENT SERVICE,ATTAIN HEALTH MANAGEMENT SERVICES LTD,23325018,43.32 
Department of Health,NHS Sheffield CCG,31/08/2018,Subsistence Costs,BEREAVEMENT SERVICE,ATTAIN HEALTH MANAGEMENT SERVICES LTD,23325018,213.38 
Department of Health,NHS Sheffield CCG,31/08/2018,C&M-PMS Contract Value,PRC DELEGATED CO-COMMISSIONING,AVENUE MEDICAL CENTRE SHEFFIELD,23396680,"53,707.66 "
Department of Health,NHS Sheffield CCG,31/08/2018,C&M-PMS DES Minor Surgery,PRC DELEGATED CO-COMMISSIONING,AVENUE MEDICAL CENTRE SHEFFIELD,23396680,"1,150.00 "
Department of Health,NHS Sheffield CCG,31/08/2018,C&M-PMS Out of Hours Opt Outs,PRC DELEGATED CO-COMMISSIONING,AVENUE MEDICAL CENTRE SHEFFIELD,23396680,3.86 
Department of Health,NHS Sheffield CCG,31/08/2018,C&M-PMS PCO Other,PRC DELEGATED CO-COMMISSIONING,AVENUE MEDICAL CENTRE SHEFFIELD,23396680,"2,045.56 "
Department of Health,NHS Sheffield CCG,31/08/2018,C&M-PMS Prem Notional Rent,PRC DELEGATED CO-COMMISSIONING,AVENUE MEDICAL CENTRE SHEFFIELD,23396680,"5,546.67 "
Department of Health,NHS Sheffield CCG,31/08/2018,C&M-PMS Prem Rates,PRC DELEGATED CO-COMMISSIONING,AVENUE MEDICAL CENTRE SHEFFIELD,23396680,"5,014.33 "
Department of Health,NHS Sheffield CCG,31/08/2018,C&M-PMS QOF Aspiration,PRC DELEGATED CO-COMMISSIONING,AVENUE MEDICAL CENTRE SHEFFIELD,23396680,"5,705.45 "
Department of Health,NHS Sheffield CCG,31/08/2018,C&M-PMS Contract Value,PRC DELEGATED CO-COMMISSIONING,BARNSLEY ROAD SURGERY,23396684,"21,519.56 "
Department of Health,NHS Sheffield CCG,31/08/2018,C&M-PMS Prem Notional Rent,PRC DELEGATED CO-COMMISSIONING,BARNSLEY ROAD SURGERY,23396684,"2,652.17 "
Department of Health,NHS Sheffield CCG,31/08/2018,C&M-PMS QOF Aspiration,PRC DELEGATED CO-COMMISSIONING,BARNSLEY ROAD SURGERY,23396684,"2,364.70 "
Department of Health,NHS Sheffield CCG,31/08/2018,C&M-GMS Cost of Drugs -Prescribing,LOCAL ENHANCED SERVICES,BASLOW ROAD & SHOREHAM STREET SURGERIES,23628791,412.39 
Department of Health,NHS Sheffield CCG,31/08/2018,C&M-GMS Global Sum,PRC DELEGATED CO-COMMISSIONING,BASLOW ROAD & SHOREHAM STREET SURGERIES,23628791,"95,670.83 "
Department of Health,NHS Sheffield CCG,31/08/2018,C&M-GMS MPIG Correction Factor,PRC DELEGATED CO-COMMISSIONING,BASLOW ROAD & SHOREHAM STREET SURGERIES,23628791,292.43 
Department of Health,NHS Sheffield CCG,31/08/2018,C&M-GMS Prem Notional Rent,PRC DELEGATED CO-COMMISSIONING,BASLOW ROAD & SHOREHAM STREET SURGERIES,23628791,"8,511.25 "
Department of Health,NHS Sheffield CCG,31/08/2018,C&M-GMS Prem Rates,PRC DELEGATED CO-COMMISSIONING,BASLOW ROAD & SHOREHAM STREET SURGERIES,23628791,"2,273.00 "
Department of Health,NHS Sheffield CCG,31/08/2018,C&M-GMS Prof Fees Prescribing,PRC DELEGATED CO-COMMISSIONING,BASLOW ROAD & SHOREHAM STREET SURGERIES,23628791,43.70 
Department of Health,NHS Sheffield CCG,31/08/2018,C&M-GMS QOF Aspiration,PRC DELEGATED CO-COMMISSIONING,BASLOW ROAD & SHOREHAM STREET SURGERIES,23628791,"10,715.96 "
Department of Health,NHS Sheffield CCG,31/08/2018,Cont Care-Physical Disab (65+),CHC ADULT FULLY FUNDED,BC SHEFFIELD LTD,23364484,"36,915.01 "
Department of Health,NHS Sheffield CCG,31/08/2018,C&M-PMS Contract Value,PRC DELEGATED CO-COMMISSIONING,BIRLEY HEALTH CENTRE,23396686,"62,615.29 "
Department of Health,NHS Sheffield CCG,31/08/2018,C&M-PMS DES Learn Dsblty Hlth Chk,PRC DELEGATED CO-COMMISSIONING,BIRLEY HEALTH CENTRE,23396686,980.00 
Department of Health,NHS Sheffield CCG,31/08/2018,C&M-PMS DES Minor Surgery,PRC DELEGATED CO-COMMISSIONING,BIRLEY HEALTH CENTRE,23396686,"2,915.00 "
Department of Health,NHS Sheffield CCG,31/08/2018,C&M-PMS Out of Hours Opt Outs,PRC DELEGATED CO-COMMISSIONING,BIRLEY HEALTH CENTRE,23396686,7.56 
Department of Health,NHS Sheffield CCG,31/08/2018,C&M-PMS PCO Locum Adop/Pat/Mat,PRC DELEGATED CO-COMMISSIONING,BIRLEY HEALTH CENTRE,23396686,"18,219.14 "
Department of Health,NHS Sheffield CCG,31/08/2018,C&M-PMS Prem Notional Rent,PRC DELEGATED CO-COMMISSIONING,BIRLEY HEALTH CENTRE,23396686,"7,600.58 "
Department of Health,NHS Sheffield CCG,31/08/2018,C&M-PMS QOF Aspiration,PRC DELEGATED CO-COMMISSIONING,BIRLEY HEALTH CENTRE,23396686,"7,642.20 "
Department of Health,NHS Sheffield CCG,31/08/2018,Clinical&Medical-Independent Sector,ACUTE COMMISSIONING,BMI HEALTHCARE COLLECTIONS,23382083,"84,881.31 "
Department of Health,NHS Sheffield CCG,31/08/2018,C&M-GMS Cost of Drugs -Prescribing,LOCAL ENHANCED SERVICES,BROOMHILL SURGERY,23646998,"3,503.84 "
Department of Health,NHS Sheffield CCG,31/08/2018,C&M-GMS DES Minor Surgery,PRC DELEGATED CO-COMMISSIONING,BROOMHILL SURGERY,23646998,490.00 
Department of Health,NHS Sheffield CCG,31/08/2018,C&M-GMS Global Sum,PRC DELEGATED CO-COMMISSIONING,BROOMHILL SURGERY,23646998,"62,467.91 "
Department of Health,NHS Sheffield CCG,31/08/2018,C&M-GMS MPIG Correction Factor,PRC DELEGATED CO-COMMISSIONING,BROOMHILL SURGERY,23646998,502.00 
Department of Health,NHS Sheffield CCG,31/08/2018,C&M-GMS Prem Cost Rent,PRC DELEGATED CO-COMMISSIONING,BROOMHILL SURGERY,23646998,"3,380.00 "
Department of Health,NHS Sheffield CCG,31/08/2018,C&M-GMS Prem Notional Rent,PRC DELEGATED CO-COMMISSIONING,BROOMHILL SURGERY,23646998,"3,037.53 "
Department of Health,NHS Sheffield CCG,31/08/2018,C&M-GMS Prem Rates,PRC DELEGATED CO-COMMISSIONING,BROOMHILL SURGERY,23646998,"1,848.00 "
Department of Health,NHS Sheffield CCG,31/08/2018,C&M-GMS Prof Fees Prescribing,PRC DELEGATED CO-COMMISSIONING,BROOMHILL SURGERY,23646998,140.30 
Department of Health,NHS Sheffield CCG,31/08/2018,C&M-GMS QOF Aspiration,PRC DELEGATED CO-COMMISSIONING,BROOMHILL SURGERY,23646998,"6,274.17 "
Department of Health,NHS Sheffield CCG,31/08/2018,C&M-GMS IT Comm Servs -GP Practices,PRIMARY CARE IT,BT GLOBAL SERVICES,23562767,"23,801.03 "
Department of Health,NHS Sheffield CCG,31/08/2018,Computer Software/License,CORPORATE COSTS & SERVICES,BT GLOBAL SERVICES,23562767,"11,847.36 "
Department of Health,NHS Sheffield CCG,31/08/2018,C&M-GMS Cost of Drugs -Prescribing,LOCAL ENHANCED SERVICES,BUCHANAN ROAD SURGERY,23628793,149.63 
Department of Health,NHS Sheffield CCG,31/08/2018,C&M-GMS DES Minor Surgery,PRC DELEGATED CO-COMMISSIONING,BUCHANAN ROAD SURGERY,23628793,320.00 
Department of Health,NHS Sheffield CCG,31/08/2018,C&M-GMS Global Sum,PRC DELEGATED CO-COMMISSIONING,BUCHANAN ROAD SURGERY,23628793,"35,327.41 "
Department of Health,NHS Sheffield CCG,31/08/2018,C&M-GMS MPIG Correction Factor,PRC DELEGATED CO-COMMISSIONING,BUCHANAN ROAD SURGERY,23628793,"1,310.51 "
Department of Health,NHS Sheffield CCG,31/08/2018,C&M-GMS Prem Notional Rent,PRC DELEGATED CO-COMMISSIONING,BUCHANAN ROAD SURGERY,23628793,"2,595.83 "
Department of Health,NHS Sheffield CCG,31/08/2018,C&M-GMS Prem Rates,PRC DELEGATED CO-COMMISSIONING,BUCHANAN ROAD SURGERY,23628793,864.00 
Department of Health,NHS Sheffield CCG,31/08/2018,C&M-GMS Prof Fees Prescribing,PRC DELEGATED CO-COMMISSIONING,BUCHANAN ROAD SURGERY,23628793,34.50 
Department of Health,NHS Sheffield CCG,31/08/2018,C&M-GMS QOF Aspiration,PRC DELEGATED CO-COMMISSIONING,BUCHANAN ROAD SURGERY,23628793,"4,144.11 "
Department of Health,NHS Sheffield CCG,31/08/2018,C&M-PMS Contract Value,PRC DELEGATED CO-COMMISSIONING,BURNCROSS SURGERY,23396687,"119,768.41 "
Department of Health,NHS Sheffield CCG,31/08/2018,C&M-PMS Cost of Drugs -Prescribing,LOCAL ENHANCED SERVICES,BURNCROSS SURGERY,23396687,76.68 
Department of Health,NHS Sheffield CCG,31/08/2018,C&M-PMS DES Minor Surgery,PRC DELEGATED CO-COMMISSIONING,BURNCROSS SURGERY,23396687,"2,600.00 "
Department of Health,NHS Sheffield CCG,31/08/2018,C&M-PMS Prem Notional Rent,PRC DELEGATED CO-COMMISSIONING,BURNCROSS SURGERY,23396687,"14,058.33 "
Department of Health,NHS Sheffield CCG,31/08/2018,C&M-PMS Prof fees Prescribing,PRC DELEGATED CO-COMMISSIONING,BURNCROSS SURGERY,23396687,13.65 
Department of Health,NHS Sheffield CCG,31/08/2018,C&M-PMS QOF Aspiration,PRC DELEGATED CO-COMMISSIONING,BURNCROSS SURGERY,23396687,"16,082.74 "
Department of Health,NHS Sheffield CCG,31/08/2018,C&M-PMS Contract Value,PRC DELEGATED CO-COMMISSIONING,BURNCROSS SURGERY,23419304,"(1,274.56)"
Department of Health,NHS Sheffield CCG,31/08/2018,C&M-PMS GP Statutory Levy,PRC DELEGATED CO-COMMISSIONING,BURNCROSS SURGERY,23419304,(461.64)
Department of Health,NHS Sheffield CCG,31/08/2018,C&M-PMS Voluntary Levy,PRC DELEGATED CO-COMMISSIONING,BURNCROSS SURGERY,23419304,(76.94)
Department of Health,NHS Sheffield CCG,31/08/2018,C&M-PMS Contract Value,PRC DELEGATED CO-COMMISSIONING,BURNGREAVE SURGERY,23396689,"56,818.95 "
Department of Health,NHS Sheffield CCG,31/08/2018,C&M-PMS DES Minor Surgery,PRC DELEGATED CO-COMMISSIONING,BURNGREAVE SURGERY,23396689,"1,290.00 "
Department of Health,NHS Sheffield CCG,31/08/2018,C&M-PMS PCO Other,PRC DELEGATED CO-COMMISSIONING,BURNGREAVE SURGERY,23396689,"4,329.00 "
Department of Health,NHS Sheffield CCG,31/08/2018,C&M-PMS Prem Notional Rent,PRC DELEGATED CO-COMMISSIONING,BURNGREAVE SURGERY,23396689,"6,622.92 "
Department of Health,NHS Sheffield CCG,31/08/2018,C&M-PMS Prem Rates,PRC DELEGATED CO-COMMISSIONING,BURNGREAVE SURGERY,23396689,"8,750.87 "
Department of Health,NHS Sheffield CCG,31/08/2018,C&M-PMS Prem Water Rates,PRC DELEGATED CO-COMMISSIONING,BURNGREAVE SURGERY,23396689,298.53 
Department of Health,NHS Sheffield CCG,31/08/2018,C&M-PMS QOF Aspiration,PRC DELEGATED CO-COMMISSIONING,BURNGREAVE SURGERY,23396689,"4,881.27 "
Department of Health,NHS Sheffield CCG,31/08/2018,C&M-GMS GP Statutory Levy,PRC DELEGATED CO-COMMISSIONING,CARTERKNOWLE & DORE MEDICAL PRACTICE,23628799,(371.76)
Department of Health,NHS Sheffield CCG,31/08/2018,C&M-GMS Voluntary Levy,PRC DELEGATED CO-COMMISSIONING,CARTERKNOWLE & DORE MEDICAL PRACTICE,23628799,(61.96)
Department of Health,NHS Sheffield CCG,31/08/2018,C&M-GMS Cost of Drugs -Prescribing,LOCAL ENHANCED SERVICES,CARTERKNOWLE & DORE MEDICAL PRACTICE,23628800,"3,917.57 "
Department of Health,NHS Sheffield CCG,31/08/2018,C&M-GMS DES Minor Surgery,PRC DELEGATED CO-COMMISSIONING,CARTERKNOWLE & DORE MEDICAL PRACTICE,23628800,"2,865.00 "
Department of Health,NHS Sheffield CCG,31/08/2018,C&M-GMS Global Sum,PRC DELEGATED CO-COMMISSIONING,CARTERKNOWLE & DORE MEDICAL PRACTICE,23628800,"82,367.79 "
Department of Health,NHS Sheffield CCG,31/08/2018,C&M-GMS MPIG Correction Factor,PRC DELEGATED CO-COMMISSIONING,CARTERKNOWLE & DORE MEDICAL PRACTICE,23628800,"1,494.59 "
Department of Health,NHS Sheffield CCG,31/08/2018,C&M-GMS PCO Other,PRC DELEGATED CO-COMMISSIONING,CARTERKNOWLE & DORE MEDICAL PRACTICE,23628800,"2,514.33 "
Department of Health,NHS Sheffield CCG,31/08/2018,C&M-GMS Prem Notional Rent,PRC DELEGATED CO-COMMISSIONING,CARTERKNOWLE & DORE MEDICAL PRACTICE,23628800,"7,596.50 "
Department of Health,NHS Sheffield CCG,31/08/2018,C&M-GMS Prem Rates,PRC DELEGATED CO-COMMISSIONING,CARTERKNOWLE & DORE MEDICAL PRACTICE,23628800,"1,880.00 "
Department of Health,NHS Sheffield CCG,31/08/2018,C&M-GMS Prof Fees Prescribing,PRC DELEGATED CO-COMMISSIONING,CARTERKNOWLE & DORE MEDICAL PRACTICE,23628800,308.20 
Department of Health,NHS Sheffield CCG,31/08/2018,C&M-GMS QOF Aspiration,PRC DELEGATED CO-COMMISSIONING,CARTERKNOWLE & DORE MEDICAL PRACTICE,23628800,"10,163.70 "
Department of Health,NHS Sheffield CCG,31/08/2018,C&M-GMS Cost of Drugs -Prescribing,LOCAL ENHANCED SERVICES,CHARNOCK HEALTH PRIMARY CARE CENTRE,23628797,547.90 
Department of Health,NHS Sheffield CCG,31/08/2018,C&M-GMS DES Minor Surgery,PRC DELEGATED CO-COMMISSIONING,CHARNOCK HEALTH PRIMARY CARE CENTRE,23628797,"1,760.00 "
Department of Health,NHS Sheffield CCG,31/08/2018,C&M-GMS Global Sum,PRC DELEGATED CO-COMMISSIONING,CHARNOCK HEALTH PRIMARY CARE CENTRE,23628797,"40,897.62 "
Department of Health,NHS Sheffield CCG,31/08/2018,C&M-GMS MPIG Correction Factor,PRC DELEGATED CO-COMMISSIONING,CHARNOCK HEALTH PRIMARY CARE CENTRE,23628797,413.25 
Department of Health,NHS Sheffield CCG,31/08/2018,C&M-GMS PCO Locum Adop/Pat/Mat,PRC DELEGATED CO-COMMISSIONING,CHARNOCK HEALTH PRIMARY CARE CENTRE,23628797,"4,069.93 "
Department of Health,NHS Sheffield CCG,31/08/2018,C&M-GMS PCO Other,PRC DELEGATED CO-COMMISSIONING,CHARNOCK HEALTH PRIMARY CARE CENTRE,23628797,"1,583.40 "
Department of Health,NHS Sheffield CCG,31/08/2018,C&M-GMS Prem Notional Rent,PRC DELEGATED CO-COMMISSIONING,CHARNOCK HEALTH PRIMARY CARE CENTRE,23628797,335.00 
Department of Health,NHS Sheffield CCG,31/08/2018,C&M-GMS Prem Rates,PRC DELEGATED CO-COMMISSIONING,CHARNOCK HEALTH PRIMARY CARE CENTRE,23628797,"1,247.00 "
Department of Health,NHS Sheffield CCG,31/08/2018,C&M-GMS Prem Water Rates,PRC DELEGATED CO-COMMISSIONING,CHARNOCK HEALTH PRIMARY CARE CENTRE,23628797,141.74 
Department of Health,NHS Sheffield CCG,31/08/2018,C&M-GMS Prof Fees Prescribing,PRC DELEGATED CO-COMMISSIONING,CHARNOCK HEALTH PRIMARY CARE CENTRE,23628797,94.30 
Department of Health,NHS Sheffield CCG,31/08/2018,C&M-GMS QOF Aspiration,PRC DELEGATED CO-COMMISSIONING,CHARNOCK HEALTH PRIMARY CARE CENTRE,23628797,"4,710.20 "
Department of Health,NHS Sheffield CCG,31/08/2018,Hcare Srv Rec Fdtn Trust-Contract Baseline,ACUTE COMMISSIONING,CHESTERFIELD ROYAL HOSPITAL NHS FOUNDATION TRUST,23480591,"266,428.00 "
Department of Health,NHS Sheffield CCG,31/08/2018,Other Gen Supplies & Srv,CLINICAL LEADS,CHESTERFIELD ROYAL HOSPITAL NHS FOUNDATION TRUST,23684706,"37,000.00 "
Department of Health,NHS Sheffield CCG,31/08/2018,Clinical&Medical-Independent Sector,ACUTE COMMISSIONING,CLAREMONT HOSPITAL,23458072,"65,047.00 "
Department of Health,NHS Sheffield CCG,31/08/2018,Voids and Subsidies,PRC DELEGATED CO-COMMISSIONING,COMMUNITY HEALTH PARTNERSHIPS LTD,23409211,"20,929.47 "
Department of Health,NHS Sheffield CCG,31/08/2018,Voids and Subsidies,RECHARGES NHS PROPERTY SERVICES LTD,COMMUNITY HEALTH PARTNERSHIPS LTD,23409211,"113,294.98 "
Department of Health,NHS Sheffield CCG,31/08/2018,Cont Care-Funded Nursing Care Allow,FUNDED NURSING CARE,COUNTRY COURT CARE LTD,23364807,"30,027.69 "
Department of Health,NHS Sheffield CCG,31/08/2018,C&M-GMS Cost of Drugs -Prescribing,LOCAL ENHANCED SERVICES,CROOKES PRACTICE,23628804,"1,180.68 "
Department of Health,NHS Sheffield CCG,31/08/2018,C&M-GMS Global Sum,PRC DELEGATED CO-COMMISSIONING,CROOKES PRACTICE,23628804,"49,360.79 "
Department of Health,NHS Sheffield CCG,31/08/2018,C&M-GMS MPIG Correction Factor,PRC DELEGATED CO-COMMISSIONING,CROOKES PRACTICE,23628804,"1,545.92 "
Department of Health,NHS Sheffield CCG,31/08/2018,C&M-GMS PCO Other,PRC DELEGATED CO-COMMISSIONING,CROOKES PRACTICE,23628804,559.22 
Department of Health,NHS Sheffield CCG,31/08/2018,C&M-GMS Prem Notional Rent,PRC DELEGATED CO-COMMISSIONING,CROOKES PRACTICE,23628804,"3,874.67 "
Department of Health,NHS Sheffield CCG,31/08/2018,C&M-GMS Prem Rates,PRC DELEGATED CO-COMMISSIONING,CROOKES PRACTICE,23628804,"1,476.00 "
Department of Health,NHS Sheffield CCG,31/08/2018,C&M-GMS Prof Fees Prescribing,PRC DELEGATED CO-COMMISSIONING,CROOKES PRACTICE,23628804,163.30 
Department of Health,NHS Sheffield CCG,31/08/2018,C&M-GMS QOF Aspiration,PRC DELEGATED CO-COMMISSIONING,CROOKES PRACTICE,23628804,"5,056.52 "
Department of Health,NHS Sheffield CCG,31/08/2018,C&M-PMS Contract Value,PRC DELEGATED CO-COMMISSIONING,DEEPCAR MEDICAL CENTRE,23396693,"40,519.12 "
Department of Health,NHS Sheffield CCG,31/08/2018,C&M-PMS Prem Healthcentre Rent,PRC DELEGATED CO-COMMISSIONING,DEEPCAR MEDICAL CENTRE,23396693,"29,067.58 "
Department of Health,NHS Sheffield CCG,31/08/2018,C&M-PMS QOF Aspiration,PRC DELEGATED CO-COMMISSIONING,DEEPCAR MEDICAL CENTRE,23396693,"4,182.29 "
Department of Health,NHS Sheffield CCG,31/08/2018,External Consultancy Fees,BEREAVEMENT SERVICE,DELOITTE MCS LTD,23325058,"27,737.46 "
Department of Health,NHS Sheffield CCG,31/08/2018,C&M-GMS Cost of Drugs -Prescribing,LOCAL ENHANCED SERVICES,DEVONSHIRE GREEN MEDICAL CENTRE,23628807,"1,191.70 "
Department of Health,NHS Sheffield CCG,31/08/2018,C&M-GMS DES Minor Surgery,PRC DELEGATED CO-COMMISSIONING,DEVONSHIRE GREEN MEDICAL CENTRE,23628807,200.00 
Department of Health,NHS Sheffield CCG,31/08/2018,C&M-GMS Global Sum,PRC DELEGATED CO-COMMISSIONING,DEVONSHIRE GREEN MEDICAL CENTRE,23628807,"44,691.36 "
Department of Health,NHS Sheffield CCG,31/08/2018,C&M-GMS MPIG Correction Factor,PRC DELEGATED CO-COMMISSIONING,DEVONSHIRE GREEN MEDICAL CENTRE,23628807,"3,231.20 "
Department of Health,NHS Sheffield CCG,31/08/2018,C&M-GMS PCO Other,PRC DELEGATED CO-COMMISSIONING,DEVONSHIRE GREEN MEDICAL CENTRE,23628807,"4,465.00 "
Department of Health,NHS Sheffield CCG,31/08/2018,C&M-GMS Prem Notional Rent,PRC DELEGATED CO-COMMISSIONING,DEVONSHIRE GREEN MEDICAL CENTRE,23628807,"5,987.50 "
Department of Health,NHS Sheffield CCG,31/08/2018,C&M-GMS Prem Rates,PRC DELEGATED CO-COMMISSIONING,DEVONSHIRE GREEN MEDICAL CENTRE,23628807,"4,336.77 "
Department of Health,NHS Sheffield CCG,31/08/2018,C&M-GMS Prof Fees Prescribing,PRC DELEGATED CO-COMMISSIONING,DEVONSHIRE GREEN MEDICAL CENTRE,23628807,190.90 
Department of Health,NHS Sheffield CCG,31/08/2018,C&M-GMS QOF Aspiration,PRC DELEGATED CO-COMMISSIONING,DEVONSHIRE GREEN MEDICAL CENTRE,23628807,"4,641.81 "
Department of Health,NHS Sheffield CCG,31/08/2018,Hcare Srv Rec Fdtn Trust-Contract Baseline,ACUTE COMMISSIONING,DONCASTER AND BASSETLAW HOSPITALS NHS FOUNDATION TRUST,23364488,"35,160.00 "
Department of Health,NHS Sheffield CCG,31/08/2018,C&M-PMS Contract Value,PRC DELEGATED CO-COMMISSIONING,DOVERCOURT SURGERY,23396695,"71,567.71 "
Department of Health,NHS Sheffield CCG,31/08/2018,C&M-PMS DES Minor Surgery,PRC DELEGATED CO-COMMISSIONING,DOVERCOURT SURGERY,23396695,"1,560.00 "
Department of Health,NHS Sheffield CCG,31/08/2018,C&M-PMS Out of Hours Opt Outs,PRC DELEGATED CO-COMMISSIONING,DOVERCOURT SURGERY,23396695,7.91 
Department of Health,NHS Sheffield CCG,31/08/2018,C&M-PMS PCO Other,PRC DELEGATED CO-COMMISSIONING,DOVERCOURT SURGERY,23396695,584.56 
Department of Health,NHS Sheffield CCG,31/08/2018,C&M-PMS Prem Actual Rent,PRC DELEGATED CO-COMMISSIONING,DOVERCOURT SURGERY,23396695,"12,400.00 "
Department of Health,NHS Sheffield CCG,31/08/2018,C&M-PMS Prem Notional Rent,PRC DELEGATED CO-COMMISSIONING,DOVERCOURT SURGERY,23396695,"1,708.34 "
Department of Health,NHS Sheffield CCG,31/08/2018,C&M-PMS QOF Aspiration,PRC DELEGATED CO-COMMISSIONING,DOVERCOURT SURGERY,23396695,"7,443.07 "
Department of Health,NHS Sheffield CCG,31/08/2018,C&M-PMS Contract Value,PRC DELEGATED CO-COMMISSIONING,DR MEHROTRA & PARTNER,23396697,"27,417.44 "
Department of Health,NHS Sheffield CCG,31/08/2018,C&M-PMS Prem Actual Rent,PRC DELEGATED CO-COMMISSIONING,DR MEHROTRA & PARTNER,23396697,"2,650.00 "
Department of Health,NHS Sheffield CCG,31/08/2018,C&M-PMS Prem Notional Rent,PRC DELEGATED CO-COMMISSIONING,DR MEHROTRA & PARTNER,23396697,"5,157.29 "
Department of Health,NHS Sheffield CCG,31/08/2018,C&M-PMS Prem Rates,PRC DELEGATED CO-COMMISSIONING,DR MEHROTRA & PARTNER,23396697,"1,463.00 "
Department of Health,NHS Sheffield CCG,31/08/2018,C&M-PMS QOF Aspiration,PRC DELEGATED CO-COMMISSIONING,DR MEHROTRA & PARTNER,23396697,"3,078.44 "
Department of Health,NHS Sheffield CCG,31/08/2018,C&M-PMS Contract Value,PRC DELEGATED CO-COMMISSIONING,DR MILNER & PARTNERS,23396699,"74,650.71 "
Department of Health,NHS Sheffield CCG,31/08/2018,C&M-PMS DES Minor Surgery,PRC DELEGATED CO-COMMISSIONING,DR MILNER & PARTNERS,23396699,"2,830.00 "
Department of Health,NHS Sheffield CCG,31/08/2018,C&M-PMS Out of Hours Opt Outs,PRC DELEGATED CO-COMMISSIONING,DR MILNER & PARTNERS,23396699,9.66 
Department of Health,NHS Sheffield CCG,31/08/2018,C&M-PMS PCO Other,PRC DELEGATED CO-COMMISSIONING,DR MILNER & PARTNERS,23396699,"6,561.00 "
Department of Health,NHS Sheffield CCG,31/08/2018,C&M-PMS Prem Actual Rent,PRC DELEGATED CO-COMMISSIONING,DR MILNER & PARTNERS,23396699,"11,382.00 "
Department of Health,NHS Sheffield CCG,31/08/2018,C&M-PMS Prem Notional Rent,PRC DELEGATED CO-COMMISSIONING,DR MILNER & PARTNERS,23396699,"4,462.42 "
Department of Health,NHS Sheffield CCG,31/08/2018,C&M-PMS Prem Rates,PRC DELEGATED CO-COMMISSIONING,DR MILNER & PARTNERS,23396699,"2,464.00 "
Department of Health,NHS Sheffield CCG,31/08/2018,C&M-PMS QOF Aspiration,PRC DELEGATED CO-COMMISSIONING,DR MILNER & PARTNERS,23396699,"6,553.23 "
Department of Health,NHS Sheffield CCG,31/08/2018,C&M-GMS Cost of Drugs -Prescribing,LOCAL ENHANCED SERVICES,DUKE MEDICAL CENTRE,23628818,"1,082.07 "
Department of Health,NHS Sheffield CCG,31/08/2018,C&M-GMS DES Minor Surgery,PRC DELEGATED CO-COMMISSIONING,DUKE MEDICAL CENTRE,23628818,960.00 
Department of Health,NHS Sheffield CCG,31/08/2018,C&M-GMS Global Sum,PRC DELEGATED CO-COMMISSIONING,DUKE MEDICAL CENTRE,23628818,"56,419.92 "
Department of Health,NHS Sheffield CCG,31/08/2018,C&M-GMS MPIG Correction Factor,PRC DELEGATED CO-COMMISSIONING,DUKE MEDICAL CENTRE,23628818,612.51 
Department of Health,NHS Sheffield CCG,31/08/2018,C&M-GMS PCO Other,PRC DELEGATED CO-COMMISSIONING,DUKE MEDICAL CENTRE,23628818,495.17 
Department of Health,NHS Sheffield CCG,31/08/2018,C&M-GMS Prem Notional Rent,PRC DELEGATED CO-COMMISSIONING,DUKE MEDICAL CENTRE,23628818,"5,721.67 "
Department of Health,NHS Sheffield CCG,31/08/2018,C&M-GMS Prem Rates,PRC DELEGATED CO-COMMISSIONING,DUKE MEDICAL CENTRE,23628818,"1,098.00 "
Department of Health,NHS Sheffield CCG,31/08/2018,C&M-GMS Prof Fees Prescribing,PRC DELEGATED CO-COMMISSIONING,DUKE MEDICAL CENTRE,23628818,209.30 
Department of Health,NHS Sheffield CCG,31/08/2018,C&M-GMS QOF Aspiration,PRC DELEGATED CO-COMMISSIONING,DUKE MEDICAL CENTRE,23628818,"4,948.64 "
Department of Health,NHS Sheffield CCG,31/08/2018,C&M-PMS Contract Value,PRC DELEGATED CO-COMMISSIONING,DUNNINC ROAD SURGERY,23396701,"23,485.97 "
Department of Health,NHS Sheffield CCG,31/08/2018,C&M-PMS DES Minor Surgery,PRC DELEGATED CO-COMMISSIONING,DUNNINC ROAD SURGERY,23396701,"1,415.00 "
Department of Health,NHS Sheffield CCG,31/08/2018,C&M-PMS Prem Notional Rent,PRC DELEGATED CO-COMMISSIONING,DUNNINC ROAD SURGERY,23396701,"1,664.58 "
Department of Health,NHS Sheffield CCG,31/08/2018,C&M-PMS QOF Aspiration,PRC DELEGATED CO-COMMISSIONING,DUNNINC ROAD SURGERY,23396701,"2,554.49 "
Department of Health,NHS Sheffield CCG,31/08/2018,C&M-PMS Contract Value,PRC DELEGATED CO-COMMISSIONING,DYKES HALL MEDICAL CENTRE,23396703,"71,997.73 "
Department of Health,NHS Sheffield CCG,31/08/2018,C&M-PMS DES Minor Surgery,PRC DELEGATED CO-COMMISSIONING,DYKES HALL MEDICAL CENTRE,23396703,"1,400.00 "
Department of Health,NHS Sheffield CCG,31/08/2018,C&M-PMS Out of Hours Opt Outs,PRC DELEGATED CO-COMMISSIONING,DYKES HALL MEDICAL CENTRE,23396703,12.02 
Department of Health,NHS Sheffield CCG,31/08/2018,C&M-PMS Prem Notional Rent,PRC DELEGATED CO-COMMISSIONING,DYKES HALL MEDICAL CENTRE,23396703,"5,682.08 "
Department of Health,NHS Sheffield CCG,31/08/2018,C&M-PMS QOF Aspiration,PRC DELEGATED CO-COMMISSIONING,DYKES HALL MEDICAL CENTRE,23396703,"8,079.17 "
Department of Health,NHS Sheffield CCG,31/08/2018,C&M-PMS Contract Value,PRC DELEGATED CO-COMMISSIONING,EAST BANK MEDICAL CENTRE,23396705,"46,756.41 "
Department of Health,NHS Sheffield CCG,31/08/2018,C&M-PMS DES Minor Surgery,PRC DELEGATED CO-COMMISSIONING,EAST BANK MEDICAL CENTRE,23396705,630.00 
Department of Health,NHS Sheffield CCG,31/08/2018,C&M-PMS Prem Notional Rent,PRC DELEGATED CO-COMMISSIONING,EAST BANK MEDICAL CENTRE,23396705,"10,583.34 "
Department of Health,NHS Sheffield CCG,31/08/2018,C&M-PMS Prem Rates,PRC DELEGATED CO-COMMISSIONING,EAST BANK MEDICAL CENTRE,23396705,"2,729.00 "
Department of Health,NHS Sheffield CCG,31/08/2018,C&M-PMS QOF Aspiration,PRC DELEGATED CO-COMMISSIONING,EAST BANK MEDICAL CENTRE,23396705,"4,881.64 "
Department of Health,NHS Sheffield CCG,31/08/2018,C&M-GMS Cost of Drugs -Prescribing,LOCAL ENHANCED SERVICES,ECCLESFIELD GROUP PRACTICE,23628812,"2,606.80 "
Department of Health,NHS Sheffield CCG,31/08/2018,C&M-GMS DES Minor Surgery,PRC DELEGATED CO-COMMISSIONING,ECCLESFIELD GROUP PRACTICE,23628812,920.00 
Department of Health,NHS Sheffield CCG,31/08/2018,C&M-GMS Global Sum,PRC DELEGATED CO-COMMISSIONING,ECCLESFIELD GROUP PRACTICE,23628812,"66,062.78 "
Department of Health,NHS Sheffield CCG,31/08/2018,C&M-GMS PCO Other,PRC DELEGATED CO-COMMISSIONING,ECCLESFIELD GROUP PRACTICE,23628812,572.78 
Department of Health,NHS Sheffield CCG,31/08/2018,C&M-GMS Prem Notional Rent,PRC DELEGATED CO-COMMISSIONING,ECCLESFIELD GROUP PRACTICE,23628812,"6,805.42 "
Department of Health,NHS Sheffield CCG,31/08/2018,C&M-GMS Prem Rates,PRC DELEGATED CO-COMMISSIONING,ECCLESFIELD GROUP PRACTICE,23628812,"1,278.00 "
Department of Health,NHS Sheffield CCG,31/08/2018,C&M-GMS Prem Water Rates,PRC DELEGATED CO-COMMISSIONING,ECCLESFIELD GROUP PRACTICE,23628812,387.66 
Department of Health,NHS Sheffield CCG,31/08/2018,C&M-GMS Prof Fees Prescribing,PRC DELEGATED CO-COMMISSIONING,ECCLESFIELD GROUP PRACTICE,23628812,351.90 
Department of Health,NHS Sheffield CCG,31/08/2018,C&M-GMS QOF Aspiration,PRC DELEGATED CO-COMMISSIONING,ECCLESFIELD GROUP PRACTICE,23628812,"8,811.44 "
Department of Health,NHS Sheffield CCG,31/08/2018,C&M-APMS LES Basket of Procedures,LOCAL ENHANCED SERVICES,ECCLESFIELD GROUP PRACTICE,23685784,"45,592.00 "
Department of Health,NHS Sheffield CCG,31/08/2018,C&M-GMS Cost of Drugs -Prescribing,LOCAL ENHANCED SERVICES,ELM LANE SURGERY,23628815,"1,459.97 "
Department of Health,NHS Sheffield CCG,31/08/2018,C&M-GMS DES Minor Surgery,PRC DELEGATED CO-COMMISSIONING,ELM LANE SURGERY,23628815,40.00 
Department of Health,NHS Sheffield CCG,31/08/2018,C&M-GMS Global Sum,PRC DELEGATED CO-COMMISSIONING,ELM LANE SURGERY,23628815,"38,806.41 "
Department of Health,NHS Sheffield CCG,31/08/2018,C&M-GMS MPIG Correction Factor,PRC DELEGATED CO-COMMISSIONING,ELM LANE SURGERY,23628815,838.53 
Department of Health,NHS Sheffield CCG,31/08/2018,C&M-GMS Prem Notional Rent,PRC DELEGATED CO-COMMISSIONING,ELM LANE SURGERY,23628815,"5,168.50 "
Department of Health,NHS Sheffield CCG,31/08/2018,C&M-GMS Prem Rates,PRC DELEGATED CO-COMMISSIONING,ELM LANE SURGERY,23628815,"1,340.00 "
Department of Health,NHS Sheffield CCG,31/08/2018,C&M-GMS Prof Fees Prescribing,PRC DELEGATED CO-COMMISSIONING,ELM LANE SURGERY,23628815,151.80 
Department of Health,NHS Sheffield CCG,31/08/2018,C&M-GMS QOF Aspiration,PRC DELEGATED CO-COMMISSIONING,ELM LANE SURGERY,23628815,"4,467.14 "
Department of Health,NHS Sheffield CCG,31/08/2018,Clinical&Medical-Independent Sector,MENTAL HEALTH SERVICES - OTHER,ELYSIUM HEALTHCARE LTD,23685160,"(43,808.99)"
Department of Health,NHS Sheffield CCG,31/08/2018,Cont Care-Physical Disab (<65),CHC ADULT FULLY FUNDED,FAIRWINDS HEALTH CARE LTD,23364710,"39,203.66 "
Department of Health,NHS Sheffield CCG,31/08/2018,C&M-PMS Contract Value,PRC DELEGATED CO-COMMISSIONING,FALKLAND HOUSE,23396709,"25,471.58 "
Department of Health,NHS Sheffield CCG,31/08/2018,C&M-PMS DES Minor Surgery,PRC DELEGATED CO-COMMISSIONING,FALKLAND HOUSE,23396709,840.00 
Department of Health,NHS Sheffield CCG,31/08/2018,C&M-PMS Out of Hours Opt Outs,PRC DELEGATED CO-COMMISSIONING,FALKLAND HOUSE,23396709,8.94 
Department of Health,NHS Sheffield CCG,31/08/2018,C&M-PMS PCO Other,PRC DELEGATED CO-COMMISSIONING,FALKLAND HOUSE,23396709,307.67 
Department of Health,NHS Sheffield CCG,31/08/2018,C&M-PMS Prem Notional Rent,PRC DELEGATED CO-COMMISSIONING,FALKLAND HOUSE,23396709,"1,866.67 "
Department of Health,NHS Sheffield CCG,31/08/2018,C&M-PMS Prem Rates,PRC DELEGATED CO-COMMISSIONING,FALKLAND HOUSE,23396709,756.00 
Department of Health,NHS Sheffield CCG,31/08/2018,C&M-PMS QOF Aspiration,PRC DELEGATED CO-COMMISSIONING,FALKLAND HOUSE,23396709,"2,902.49 "
Department of Health,NHS Sheffield CCG,31/08/2018,C&M-GMS Cost of Drugs -Prescribing,LOCAL ENHANCED SERVICES,FAR LANE MEDICAL CENTRE,23628829,314.16 
Department of Health,NHS Sheffield CCG,31/08/2018,C&M-GMS DES Minor Surgery,PRC DELEGATED CO-COMMISSIONING,FAR LANE MEDICAL CENTRE,23628829,"3,030.00 "
Department of Health,NHS Sheffield CCG,31/08/2018,C&M-GMS Global Sum,PRC DELEGATED CO-COMMISSIONING,FAR LANE MEDICAL CENTRE,23628829,"54,159.55 "
Department of Health,NHS Sheffield CCG,31/08/2018,C&M-GMS PCO Other,PRC DELEGATED CO-COMMISSIONING,FAR LANE MEDICAL CENTRE,23628829,518.33 
Department of Health,NHS Sheffield CCG,31/08/2018,C&M-GMS Prem Notional Rent,PRC DELEGATED CO-COMMISSIONING,FAR LANE MEDICAL CENTRE,23628829,"3,462.50 "
Department of Health,NHS Sheffield CCG,31/08/2018,C&M-GMS Prem Rates,PRC DELEGATED CO-COMMISSIONING,FAR LANE MEDICAL CENTRE,23628829,"1,114.00 "
Department of Health,NHS Sheffield CCG,31/08/2018,C&M-GMS Prof Fees Prescribing,PRC DELEGATED CO-COMMISSIONING,FAR LANE MEDICAL CENTRE,23628829,112.70 
Department of Health,NHS Sheffield CCG,31/08/2018,C&M-GMS QOF Aspiration,PRC DELEGATED CO-COMMISSIONING,FAR LANE MEDICAL CENTRE,23628829,"5,824.23 "
Department of Health,NHS Sheffield CCG,31/08/2018,C&M-PMS Contract Value,PRC DELEGATED CO-COMMISSIONING,FIRTH PARK SURGERY,23396707,"72,563.42 "
Department of Health,NHS Sheffield CCG,31/08/2018,C&M-PMS DES Minor Surgery,PRC DELEGATED CO-COMMISSIONING,FIRTH PARK SURGERY,23396707,"1,840.00 "
Department of Health,NHS Sheffield CCG,31/08/2018,C&M-PMS Prem Notional Rent,PRC DELEGATED CO-COMMISSIONING,FIRTH PARK SURGERY,23396707,"4,500.00 "
Department of Health,NHS Sheffield CCG,31/08/2018,C&M-PMS Prem Rates,PRC DELEGATED CO-COMMISSIONING,FIRTH PARK SURGERY,23396707,"1,330.00 "
Department of Health,NHS Sheffield CCG,31/08/2018,C&M-PMS Prem Water Rates,PRC DELEGATED CO-COMMISSIONING,FIRTH PARK SURGERY,23396707,193.95 
Department of Health,NHS Sheffield CCG,31/08/2018,C&M-PMS QOF Aspiration,PRC DELEGATED CO-COMMISSIONING,FIRTH PARK SURGERY,23396707,"7,359.15 "
Department of Health,NHS Sheffield CCG,31/08/2018,C&M-GMS Cost of Drugs -Prescribing,LOCAL ENHANCED SERVICES,FLOWERS HEALTH CENTRE,23628951,757.31 
Department of Health,NHS Sheffield CCG,31/08/2018,C&M-GMS DES Minor Surgery,PRC DELEGATED CO-COMMISSIONING,FLOWERS HEALTH CENTRE,23628951,480.00 
Department of Health,NHS Sheffield CCG,31/08/2018,C&M-GMS Global Sum,PRC DELEGATED CO-COMMISSIONING,FLOWERS HEALTH CENTRE,23628951,"35,356.34 "
Department of Health,NHS Sheffield CCG,31/08/2018,C&M-GMS MPIG Correction Factor,PRC DELEGATED CO-COMMISSIONING,FLOWERS HEALTH CENTRE,23628951,"1,476.31 "
Department of Health,NHS Sheffield CCG,31/08/2018,C&M-GMS PCO Other,PRC DELEGATED CO-COMMISSIONING,FLOWERS HEALTH CENTRE,23628951,"3,290.00 "
Department of Health,NHS Sheffield CCG,31/08/2018,C&M-GMS Prem Healthcentre Rent,PRC DELEGATED CO-COMMISSIONING,FLOWERS HEALTH CENTRE,23628951,"33,513.30 "
Department of Health,NHS Sheffield CCG,31/08/2018,C&M-GMS Prof Fees Prescribing,PRC DELEGATED CO-COMMISSIONING,FLOWERS HEALTH CENTRE,23628951,133.40 
Department of Health,NHS Sheffield CCG,31/08/2018,C&M-GMS QOF Aspiration,PRC DELEGATED CO-COMMISSIONING,FLOWERS HEALTH CENTRE,23628951,"4,241.34 "
Department of Health,NHS Sheffield CCG,31/08/2018,Cont Care-Physical Disab (<65),CHC ADULT FULLY FUNDED,FOUR SEASONS HEALTH CARE LTD,23364564,"25,112.60 "
Department of Health,NHS Sheffield CCG,31/08/2018,C&M-PMS Contract Value,PRC DELEGATED CO-COMMISSIONING,FOXHILL MEDICAL CENTRE SHEFFIELD,23396754,"51,352.14 "
Department of Health,NHS Sheffield CCG,31/08/2018,C&M-PMS DES Minor Surgery,PRC DELEGATED CO-COMMISSIONING,FOXHILL MEDICAL CENTRE SHEFFIELD,23396754,410.00 
Department of Health,NHS Sheffield CCG,31/08/2018,C&M-PMS PCO Other,PRC DELEGATED CO-COMMISSIONING,FOXHILL MEDICAL CENTRE SHEFFIELD,23396754,446.84 
Department of Health,NHS Sheffield CCG,31/08/2018,C&M-PMS Prem Healthcentre Rent,PRC DELEGATED CO-COMMISSIONING,FOXHILL MEDICAL CENTRE SHEFFIELD,23396754,"46,751.16 "
Department of Health,NHS Sheffield CCG,31/08/2018,C&M-PMS QOF Aspiration,PRC DELEGATED CO-COMMISSIONING,FOXHILL MEDICAL CENTRE SHEFFIELD,23396754,"5,580.51 "
Department of Health,NHS Sheffield CCG,31/08/2018,C&M-PMS Contract Value,PRC DELEGATED CO-COMMISSIONING,GLEADLESS MEDICAL CENTRE,23396711,"68,649.08 "
Department of Health,NHS Sheffield CCG,31/08/2018,C&M-PMS DES Minor Surgery,PRC DELEGATED CO-COMMISSIONING,GLEADLESS MEDICAL CENTRE,23396711,320.00 
Department of Health,NHS Sheffield CCG,31/08/2018,C&M-PMS Out of Hours Opt Outs,PRC DELEGATED CO-COMMISSIONING,GLEADLESS MEDICAL CENTRE,23396711,16.70 
Department of Health,NHS Sheffield CCG,31/08/2018,C&M-PMS PCO Other,PRC DELEGATED CO-COMMISSIONING,GLEADLESS MEDICAL CENTRE,23396711,619.11 
Department of Health,NHS Sheffield CCG,31/08/2018,C&M-PMS Prem Notional Rent,PRC DELEGATED CO-COMMISSIONING,GLEADLESS MEDICAL CENTRE,23396711,"6,750.00 "
Department of Health,NHS Sheffield CCG,31/08/2018,C&M-PMS Prem Rates,PRC DELEGATED CO-COMMISSIONING,GLEADLESS MEDICAL CENTRE,23396711,"1,564.00 "
Department of Health,NHS Sheffield CCG,31/08/2018,C&M-PMS QOF Aspiration,PRC DELEGATED CO-COMMISSIONING,GLEADLESS MEDICAL CENTRE,23396711,"7,712.98 "
Department of Health,NHS Sheffield CCG,31/08/2018,C&M-GMS Cost of Drugs -Prescribing,LOCAL ENHANCED SERVICES,GRENOSIDE SURGERY,23628841,"1,498.88 "
Department of Health,NHS Sheffield CCG,31/08/2018,C&M-GMS DES Minor Surgery,PRC DELEGATED CO-COMMISSIONING,GRENOSIDE SURGERY,23628841,450.00 
Department of Health,NHS Sheffield CCG,31/08/2018,C&M-GMS Global Sum,PRC DELEGATED CO-COMMISSIONING,GRENOSIDE SURGERY,23628841,"56,233.78 "
Department of Health,NHS Sheffield CCG,31/08/2018,C&M-GMS PCO Locum Adop/Pat/Mat,PRC DELEGATED CO-COMMISSIONING,GRENOSIDE SURGERY,23628841,"12,711.16 "
Department of Health,NHS Sheffield CCG,31/08/2018,C&M-GMS PCO Other,PRC DELEGATED CO-COMMISSIONING,GRENOSIDE SURGERY,23628841,"4,708.00 "
Department of Health,NHS Sheffield CCG,31/08/2018,C&M-GMS Prem Notional Rent,PRC DELEGATED CO-COMMISSIONING,GRENOSIDE SURGERY,23628841,"8,110.42 "
Department of Health,NHS Sheffield CCG,31/08/2018,C&M-GMS Prem Rates,PRC DELEGATED CO-COMMISSIONING,GRENOSIDE SURGERY,23628841,"1,916.00 "
Department of Health,NHS Sheffield CCG,31/08/2018,C&M-GMS Prem Water Rates,PRC DELEGATED CO-COMMISSIONING,GRENOSIDE SURGERY,23628841,131.15 
Department of Health,NHS Sheffield CCG,31/08/2018,C&M-GMS Prof Fees Prescribing,PRC DELEGATED CO-COMMISSIONING,GRENOSIDE SURGERY,23628841,103.50 
Department of Health,NHS Sheffield CCG,31/08/2018,C&M-GMS QOF Aspiration,PRC DELEGATED CO-COMMISSIONING,GRENOSIDE SURGERY,23628841,"5,655.38 "
Department of Health,NHS Sheffield CCG,31/08/2018,C&M-GMS Cost of Drugs -Prescribing,LOCAL ENHANCED SERVICES,GREYSTONES MEDICAL CENTRE,23628846,66.61 
Department of Health,NHS Sheffield CCG,31/08/2018,C&M-GMS DES Minor Surgery,PRC DELEGATED CO-COMMISSIONING,GREYSTONES MEDICAL CENTRE,23628846,"1,125.00 "
Department of Health,NHS Sheffield CCG,31/08/2018,C&M-GMS Global Sum,PRC DELEGATED CO-COMMISSIONING,GREYSTONES MEDICAL CENTRE,23628846,"19,111.94 "
Department of Health,NHS Sheffield CCG,31/08/2018,C&M-GMS MPIG Correction Factor,PRC DELEGATED CO-COMMISSIONING,GREYSTONES MEDICAL CENTRE,23628846,"1,104.46 "
Department of Health,NHS Sheffield CCG,31/08/2018,C&M-GMS PCO Other,PRC DELEGATED CO-COMMISSIONING,GREYSTONES MEDICAL CENTRE,23628846,292.44 
Department of Health,NHS Sheffield CCG,31/08/2018,C&M-GMS Prem Notional Rent,PRC DELEGATED CO-COMMISSIONING,GREYSTONES MEDICAL CENTRE,23628846,"2,885.42 "
Department of Health,NHS Sheffield CCG,31/08/2018,C&M-GMS Prem Rates,PRC DELEGATED CO-COMMISSIONING,GREYSTONES MEDICAL CENTRE,23628846,538.00 
Department of Health,NHS Sheffield CCG,31/08/2018,C&M-GMS Prof Fees Prescribing,PRC DELEGATED CO-COMMISSIONING,GREYSTONES MEDICAL CENTRE,23628846,29.90 
Department of Health,NHS Sheffield CCG,31/08/2018,C&M-GMS QOF Aspiration,PRC DELEGATED CO-COMMISSIONING,GREYSTONES MEDICAL CENTRE,23628846,"2,246.27 "
Department of Health,NHS Sheffield CCG,31/08/2018,C&M-PMS Contract Value,PRC DELEGATED CO-COMMISSIONING,HACKENTHORPE MEDICAL CENTRE,23396713,"47,867.16 "
Department of Health,NHS Sheffield CCG,31/08/2018,C&M-PMS DES Minor Surgery,PRC DELEGATED CO-COMMISSIONING,HACKENTHORPE MEDICAL CENTRE,23396713,"1,905.00 "
Department of Health,NHS Sheffield CCG,31/08/2018,C&M-PMS PCO Other,PRC DELEGATED CO-COMMISSIONING,HACKENTHORPE MEDICAL CENTRE,23396713,480.78 
Department of Health,NHS Sheffield CCG,31/08/2018,C&M-PMS Prem Notional Rent,PRC DELEGATED CO-COMMISSIONING,HACKENTHORPE MEDICAL CENTRE,23396713,"4,981.25 "
Department of Health,NHS Sheffield CCG,31/08/2018,C&M-PMS Prem Rates,PRC DELEGATED CO-COMMISSIONING,HACKENTHORPE MEDICAL CENTRE,23396713,"1,196.00 "
Department of Health,NHS Sheffield CCG,31/08/2018,C&M-PMS QOF Aspiration,PRC DELEGATED CO-COMMISSIONING,HACKENTHORPE MEDICAL CENTRE,23396713,"6,346.88 "
Department of Health,NHS Sheffield CCG,31/08/2018,C&M-GMS Cost of Drugs -Prescribing,LOCAL ENHANCED SERVICES,HANDSWORTH MEDICAL PRACTICE SHEFFIELD,23628837,"1,094.70 "
Department of Health,NHS Sheffield CCG,31/08/2018,C&M-GMS Global Sum,PRC DELEGATED CO-COMMISSIONING,HANDSWORTH MEDICAL PRACTICE SHEFFIELD,23628837,"73,740.48 "
Department of Health,NHS Sheffield CCG,31/08/2018,C&M-GMS Prem Notional Rent,PRC DELEGATED CO-COMMISSIONING,HANDSWORTH MEDICAL PRACTICE SHEFFIELD,23628837,"3,321.66 "
Department of Health,NHS Sheffield CCG,31/08/2018,C&M-GMS Prof Fees Prescribing,PRC DELEGATED CO-COMMISSIONING,HANDSWORTH MEDICAL PRACTICE SHEFFIELD,23628837,223.10 
Department of Health,NHS Sheffield CCG,31/08/2018,C&M-GMS QOF Aspiration,PRC DELEGATED CO-COMMISSIONING,HANDSWORTH MEDICAL PRACTICE SHEFFIELD,23628837,"7,379.76 "
Department of Health,NHS Sheffield CCG,31/08/2018,C&M-GMS Cost of Drugs -Prescribing,LOCAL ENHANCED SERVICES,HAROLD STREET MEDICAL CENTRE,23646999,347.41 
Department of Health,NHS Sheffield CCG,31/08/2018,C&M-GMS Global Sum,PRC DELEGATED CO-COMMISSIONING,HAROLD STREET MEDICAL CENTRE,23646999,"22,106.06 "
Department of Health,NHS Sheffield CCG,31/08/2018,C&M-GMS PCO Other,PRC DELEGATED CO-COMMISSIONING,HAROLD STREET MEDICAL CENTRE,23646999,138.11 
Department of Health,NHS Sheffield CCG,31/08/2018,C&M-GMS Prem Notional Rent,PRC DELEGATED CO-COMMISSIONING,HAROLD STREET MEDICAL CENTRE,23646999,"4,675.00 "
Department of Health,NHS Sheffield CCG,31/08/2018,C&M-GMS Prof Fees Prescribing,PRC DELEGATED CO-COMMISSIONING,HAROLD STREET MEDICAL CENTRE,23646999,64.40 
Department of Health,NHS Sheffield CCG,31/08/2018,C&M-GMS QOF Aspiration,PRC DELEGATED CO-COMMISSIONING,HAROLD STREET MEDICAL CENTRE,23646999,"2,464.80 "
Department of Health,NHS Sheffield CCG,31/08/2018,Cont Care-Physical Disab (<65),CHC ADULT FULLY FUNDED,HC ONE LTD,23364523,"27,277.20 "
Department of Health,NHS Sheffield CCG,31/08/2018,C&M-GMS Cost of Drugs -Prescribing,LOCAL ENHANCED SERVICES,HEALTH CARE SURGERY,23628856,770.30 
Department of Health,NHS Sheffield CCG,31/08/2018,C&M-GMS DES Learn Dsblty Hlth Chk,PRC DELEGATED CO-COMMISSIONING,HEALTH CARE SURGERY,23628856,980.00 
Department of Health,NHS Sheffield CCG,31/08/2018,C&M-GMS DES Minor Surgery,PRC DELEGATED CO-COMMISSIONING,HEALTH CARE SURGERY,23628856,360.00 
Department of Health,NHS Sheffield CCG,31/08/2018,C&M-GMS Global Sum,PRC DELEGATED CO-COMMISSIONING,HEALTH CARE SURGERY,23628856,"37,619.47 "
Department of Health,NHS Sheffield CCG,31/08/2018,C&M-GMS MPIG Correction Factor,PRC DELEGATED CO-COMMISSIONING,HEALTH CARE SURGERY,23628856,780.02 
Department of Health,NHS Sheffield CCG,31/08/2018,C&M-GMS PCO Other,PRC DELEGATED CO-COMMISSIONING,HEALTH CARE SURGERY,23628856,"1,495.40 "
Department of Health,NHS Sheffield CCG,31/08/2018,C&M-GMS Prem Notional Rent,PRC DELEGATED CO-COMMISSIONING,HEALTH CARE SURGERY,23628856,"3,862.50 "
Department of Health,NHS Sheffield CCG,31/08/2018,C&M-GMS Prem Rates,PRC DELEGATED CO-COMMISSIONING,HEALTH CARE SURGERY,23628856,574.00 
Department of Health,NHS Sheffield CCG,31/08/2018,C&M-GMS Prof Fees Prescribing,PRC DELEGATED CO-COMMISSIONING,HEALTH CARE SURGERY,23628856,94.30 
Department of Health,NHS Sheffield CCG,31/08/2018,C&M-GMS QOF Aspiration,PRC DELEGATED CO-COMMISSIONING,HEALTH CARE SURGERY,23628856,"3,944.28 "
Department of Health,NHS Sheffield CCG,31/08/2018,C&M-GMS Cost of Drugs -Prescribing,LOCAL ENHANCED SERVICES,HEELEY GREEN SURGERY,23628850,"1,079.84 "
Department of Health,NHS Sheffield CCG,31/08/2018,C&M-GMS Global Sum,PRC DELEGATED CO-COMMISSIONING,HEELEY GREEN SURGERY,23628850,"41,955.48 "
Department of Health,NHS Sheffield CCG,31/08/2018,C&M-GMS MPIG Correction Factor,PRC DELEGATED CO-COMMISSIONING,HEELEY GREEN SURGERY,23628850,376.20 
Department of Health,NHS Sheffield CCG,31/08/2018,C&M-GMS Prem Notional Rent,PRC DELEGATED CO-COMMISSIONING,HEELEY GREEN SURGERY,23628850,"3,254.17 "
Department of Health,NHS Sheffield CCG,31/08/2018,C&M-GMS Prof Fees Prescribing,PRC DELEGATED CO-COMMISSIONING,HEELEY GREEN SURGERY,23628850,140.30 
Department of Health,NHS Sheffield CCG,31/08/2018,C&M-GMS QOF Aspiration,PRC DELEGATED CO-COMMISSIONING,HEELEY GREEN SURGERY,23628850,"4,672.20 "
Department of Health,NHS Sheffield CCG,31/08/2018,C&M-GMS Cost of Drugs -Prescribing,LOCAL ENHANCED SERVICES,HOLLIES MEDICAL CENTRE,23628853,539.61 
Department of Health,NHS Sheffield CCG,31/08/2018,C&M-GMS Global Sum,PRC DELEGATED CO-COMMISSIONING,HOLLIES MEDICAL CENTRE,23628853,"56,628.54 "
Department of Health,NHS Sheffield CCG,31/08/2018,C&M-GMS MPIG Correction Factor,PRC DELEGATED CO-COMMISSIONING,HOLLIES MEDICAL CENTRE,23628853,"1,452.73 "
Department of Health,NHS Sheffield CCG,31/08/2018,C&M-GMS PCO Other,PRC DELEGATED CO-COMMISSIONING,HOLLIES MEDICAL CENTRE,23628853,"2,494.88 "
Department of Health,NHS Sheffield CCG,31/08/2018,C&M-GMS Prem Notional Rent,PRC DELEGATED CO-COMMISSIONING,HOLLIES MEDICAL CENTRE,23628853,"3,229.17 "
Department of Health,NHS Sheffield CCG,31/08/2018,C&M-GMS Prem Rates,PRC DELEGATED CO-COMMISSIONING,HOLLIES MEDICAL CENTRE,23628853,"6,120.00 "
Department of Health,NHS Sheffield CCG,31/08/2018,C&M-GMS Prof Fees Prescribing,PRC DELEGATED CO-COMMISSIONING,HOLLIES MEDICAL CENTRE,23628853,82.80 
Department of Health,NHS Sheffield CCG,31/08/2018,C&M-GMS QOF Aspiration,PRC DELEGATED CO-COMMISSIONING,HOLLIES MEDICAL CENTRE,23628853,"6,440.45 "
Department of Health,NHS Sheffield CCG,31/08/2018,Cont Care-Physical Disab (<65),CHC ADULT FULLY FUNDED,HORIZON CARE HOMES LTD,23343764,"53,729.68 "
Department of Health,NHS Sheffield CCG,31/08/2018,Cont Care-Physical Disab (<65),CHC ADULT FULLY FUNDED,HORIZON CARE HOMES LTD,23343768,"50,836.38 "
Department of Health,NHS Sheffield CCG,31/08/2018,Cont Care- Prior Year Payments,CHC ADULT FULLY FUNDED,HORIZON CARE HOMES LTD,23351271,"80,314.29 "
Department of Health,NHS Sheffield CCG,31/08/2018,Cont Care-Physical Disab (<65),CHC ADULT FULLY FUNDED,HORIZON CARE HOMES LTD,23364804,"28,847.92 "
Department of Health,NHS Sheffield CCG,31/08/2018,Cont Care-Physical Disab (65+),CHC ADULT FULLY FUNDED,HORIZON CARE HOMES LTD,23382532,"53,142.85 "
Department of Health,NHS Sheffield CCG,31/08/2018,C&M-PMS Contract Value,PRC DELEGATED CO-COMMISSIONING,JAUNTY SPRINGS HEALTH CENTRE,23396715,"29,574.30 "
Department of Health,NHS Sheffield CCG,31/08/2018,C&M-PMS DES Minor Surgery,PRC DELEGATED CO-COMMISSIONING,JAUNTY SPRINGS HEALTH CENTRE,23396715,120.00 
Department of Health,NHS Sheffield CCG,31/08/2018,C&M-PMS PCO Other,PRC DELEGATED CO-COMMISSIONING,JAUNTY SPRINGS HEALTH CENTRE,23396715,284.89 
Department of Health,NHS Sheffield CCG,31/08/2018,C&M-PMS Prem Notional Rent,PRC DELEGATED CO-COMMISSIONING,JAUNTY SPRINGS HEALTH CENTRE,23396715,"3,208.33 "
Department of Health,NHS Sheffield CCG,31/08/2018,C&M-PMS Prem Rates,PRC DELEGATED CO-COMMISSIONING,JAUNTY SPRINGS HEALTH CENTRE,23396715,631.00 
Department of Health,NHS Sheffield CCG,31/08/2018,C&M-PMS Prem Water Rates,PRC DELEGATED CO-COMMISSIONING,JAUNTY SPRINGS HEALTH CENTRE,23396715,65.76 
Department of Health,NHS Sheffield CCG,31/08/2018,C&M-PMS QOF Aspiration,PRC DELEGATED CO-COMMISSIONING,JAUNTY SPRINGS HEALTH CENTRE,23396715,"3,861.25 "
Department of Health,NHS Sheffield CCG,31/08/2018,C&M-GMS IT Comm Servs -GP Practices,PRIMARY CARE IT,KIER BUSINESS SERVICES LTD,23343746,"103,393.20 "
Department of Health,NHS Sheffield CCG,31/08/2018,FM Computer Contracts,BUSINESS INFORMATICS,KIER BUSINESS SERVICES LTD,23343746,"36,933.60 "
Department of Health,NHS Sheffield CCG,31/08/2018,C&M-GMS IT Comm Servs -GP Practices,PRIMARY CARE IT,KIER BUSINESS SERVICES LTD,23597988,"56,108.40 "
Department of Health,NHS Sheffield CCG,31/08/2018,C&M-GMS LES Translation Fees,INTERPRETING SERVICES,LANGUAGELINE SOLUTIONS,23382271,"30,598.80 "
Department of Health,NHS Sheffield CCG,31/08/2018,C&M-GMS LES Translation Fees,INTERPRETING SERVICES,LANGUAGELINE SOLUTIONS,23458108,"37,522.68 "
Department of Health,NHS Sheffield CCG,31/08/2018,Hcare Srv Rec NHS Trust-Contract Baseline,ACUTE COMMISSIONING,LEEDS TEACHING HOSPITALS NHS TRUST,23364368,"44,759.00 "
Department of Health,NHS Sheffield CCG,31/08/2018,Cont Care-Physical Disab (<65),CHC ADULT FULLY FUNDED,LONGLEY HEALTH CARE LTD,23343756,"91,462.10 "
Department of Health,NHS Sheffield CCG,31/08/2018,Cont Care-Physical Disab (<65),CHC ADULT FULLY FUNDED,LOXLEY HEALTH CARE LTD,23343752,"51,251.30 "
Department of Health,NHS Sheffield CCG,31/08/2018,C&M-PMS Contract Value,PRC DELEGATED CO-COMMISSIONING,MANCHESTER ROAD SURGERY SHEFFIELD,23396719,"31,978.71 "
Department of Health,NHS Sheffield CCG,31/08/2018,C&M-PMS DES Minor Surgery,PRC DELEGATED CO-COMMISSIONING,MANCHESTER ROAD SURGERY SHEFFIELD,23396719,"1,190.00 "
Department of Health,NHS Sheffield CCG,31/08/2018,C&M-PMS Prem Cost Rent,PRC DELEGATED CO-COMMISSIONING,MANCHESTER ROAD SURGERY SHEFFIELD,23396719,"3,472.17 "
Department of Health,NHS Sheffield CCG,31/08/2018,C&M-PMS Prem Notional Rent,PRC DELEGATED CO-COMMISSIONING,MANCHESTER ROAD SURGERY SHEFFIELD,23396719,442.92 
Department of Health,NHS Sheffield CCG,31/08/2018,C&M-PMS Prem Rates,PRC DELEGATED CO-COMMISSIONING,MANCHESTER ROAD SURGERY SHEFFIELD,23396719,948.00 
Department of Health,NHS Sheffield CCG,31/08/2018,C&M-PMS QOF Aspiration,PRC DELEGATED CO-COMMISSIONING,MANCHESTER ROAD SURGERY SHEFFIELD,23396719,"4,036.85 "
Department of Health,NHS Sheffield CCG,31/08/2018,C&M-PMS Contract Value,PRC DELEGATED CO-COMMISSIONING,MANOR & PARK GROUP PRACTICE,23398511,"75,960.33 "
Department of Health,NHS Sheffield CCG,31/08/2018,C&M-PMS Cost of Drugs -Prescribing,LOCAL ENHANCED SERVICES,MANOR & PARK GROUP PRACTICE,23398511,672.29 
Department of Health,NHS Sheffield CCG,31/08/2018,C&M-PMS DES Minor Surgery,PRC DELEGATED CO-COMMISSIONING,MANOR & PARK GROUP PRACTICE,23398511,725.00 
Department of Health,NHS Sheffield CCG,31/08/2018,C&M-PMS Out of Hours Opt Outs,PRC DELEGATED CO-COMMISSIONING,MANOR & PARK GROUP PRACTICE,23398511,18.32 
Department of Health,NHS Sheffield CCG,31/08/2018,C&M-PMS Prem Notional Rent,PRC DELEGATED CO-COMMISSIONING,MANOR & PARK GROUP PRACTICE,23398511,"9,050.00 "
Department of Health,NHS Sheffield CCG,31/08/2018,C&M-PMS Prem Rates,PRC DELEGATED CO-COMMISSIONING,MANOR & PARK GROUP PRACTICE,23398511,975.00 
Department of Health,NHS Sheffield CCG,31/08/2018,C&M-PMS Prof fees Prescribing,PRC DELEGATED CO-COMMISSIONING,MANOR & PARK GROUP PRACTICE,23398511,140.30 
Department of Health,NHS Sheffield CCG,31/08/2018,C&M-PMS QOF Aspiration,PRC DELEGATED CO-COMMISSIONING,MANOR & PARK GROUP PRACTICE,23398511,"7,862.89 "
Department of Health,NHS Sheffield CCG,31/08/2018,C&M-GMS Cost of Drugs -Prescribing,LOCAL ENHANCED SERVICES,MATHEWS PRACTICE,23628871,665.70 
Department of Health,NHS Sheffield CCG,31/08/2018,C&M-GMS Global Sum,PRC DELEGATED CO-COMMISSIONING,MATHEWS PRACTICE,23628871,"63,473.79 "
Department of Health,NHS Sheffield CCG,31/08/2018,C&M-GMS MPIG Correction Factor,PRC DELEGATED CO-COMMISSIONING,MATHEWS PRACTICE,23628871,598.96 
Department of Health,NHS Sheffield CCG,31/08/2018,C&M-GMS Prem Notional Rent,PRC DELEGATED CO-COMMISSIONING,MATHEWS PRACTICE,23628871,"8,660.42 "
Department of Health,NHS Sheffield CCG,31/08/2018,C&M-GMS Prem Rates,PRC DELEGATED CO-COMMISSIONING,MATHEWS PRACTICE,23628871,"1,962.00 "
Department of Health,NHS Sheffield CCG,31/08/2018,C&M-GMS Prof Fees Prescribing,PRC DELEGATED CO-COMMISSIONING,MATHEWS PRACTICE,23628871,172.50 
Department of Health,NHS Sheffield CCG,31/08/2018,C&M-GMS QOF Aspiration,PRC DELEGATED CO-COMMISSIONING,MATHEWS PRACTICE,23628871,"7,748.47 "
Department of Health,NHS Sheffield CCG,31/08/2018,C&M-PMS Contract Value,PRC DELEGATED CO-COMMISSIONING,MEADOWHEAD GROUP PRACTICE,23396717,"76,447.76 "
Department of Health,NHS Sheffield CCG,31/08/2018,C&M-PMS DES Minor Surgery,PRC DELEGATED CO-COMMISSIONING,MEADOWHEAD GROUP PRACTICE,23396717,"1,560.00 "
Department of Health,NHS Sheffield CCG,31/08/2018,C&M-PMS Out of Hours Opt Outs,PRC DELEGATED CO-COMMISSIONING,MEADOWHEAD GROUP PRACTICE,23396717,194.32 
Department of Health,NHS Sheffield CCG,31/08/2018,C&M-PMS PCO Other,PRC DELEGATED CO-COMMISSIONING,MEADOWHEAD GROUP PRACTICE,23396717,"6,121.00 "
Department of Health,NHS Sheffield CCG,31/08/2018,C&M-PMS Prem Cost Rent,PRC DELEGATED CO-COMMISSIONING,MEADOWHEAD GROUP PRACTICE,23396717,"3,647.42 "
Department of Health,NHS Sheffield CCG,31/08/2018,C&M-PMS Prem Notional Rent,PRC DELEGATED CO-COMMISSIONING,MEADOWHEAD GROUP PRACTICE,23396717,"3,358.33 "
Department of Health,NHS Sheffield CCG,31/08/2018,C&M-PMS Prem Rates,PRC DELEGATED CO-COMMISSIONING,MEADOWHEAD GROUP PRACTICE,23396717,"1,788.00 "
Department of Health,NHS Sheffield CCG,31/08/2018,C&M-PMS QOF Aspiration,PRC DELEGATED CO-COMMISSIONING,MEADOWHEAD GROUP PRACTICE,23396717,"9,134.83 "
Department of Health,NHS Sheffield CCG,31/08/2018,C&M-GMS Cost of Drugs -Prescribing,LOCAL ENHANCED SERVICES,MEDICAL CENTRE CRYSTAL PEAKS,23628863,"1,024.10 "
Department of Health,NHS Sheffield CCG,31/08/2018,C&M-GMS DES Minor Surgery,PRC DELEGATED CO-COMMISSIONING,MEDICAL CENTRE CRYSTAL PEAKS,23628863,"3,520.00 "
Department of Health,NHS Sheffield CCG,31/08/2018,C&M-GMS Global Sum,PRC DELEGATED CO-COMMISSIONING,MEDICAL CENTRE CRYSTAL PEAKS,23628863,"45,143.30 "
Department of Health,NHS Sheffield CCG,31/08/2018,C&M-GMS MPIG Correction Factor,PRC DELEGATED CO-COMMISSIONING,MEDICAL CENTRE CRYSTAL PEAKS,23628863,"1,131.34 "
Department of Health,NHS Sheffield CCG,31/08/2018,C&M-GMS PCO Locum Adop/Pat/Mat,PRC DELEGATED CO-COMMISSIONING,MEDICAL CENTRE CRYSTAL PEAKS,23628863,"8,258.42 "
Department of Health,NHS Sheffield CCG,31/08/2018,C&M-GMS PCO Other,PRC DELEGATED CO-COMMISSIONING,MEDICAL CENTRE CRYSTAL PEAKS,23628863,474.67 
Department of Health,NHS Sheffield CCG,31/08/2018,C&M-GMS Prem Notional Rent,PRC DELEGATED CO-COMMISSIONING,MEDICAL CENTRE CRYSTAL PEAKS,23628863,270.00 
Department of Health,NHS Sheffield CCG,31/08/2018,C&M-GMS Prem Rates,PRC DELEGATED CO-COMMISSIONING,MEDICAL CENTRE CRYSTAL PEAKS,23628863,977.00 
Department of Health,NHS Sheffield CCG,31/08/2018,C&M-GMS Prof Fees Prescribing,PRC DELEGATED CO-COMMISSIONING,MEDICAL CENTRE CRYSTAL PEAKS,23628863,308.20 
Department of Health,NHS Sheffield CCG,31/08/2018,C&M-GMS QOF Aspiration,PRC DELEGATED CO-COMMISSIONING,MEDICAL CENTRE CRYSTAL PEAKS,23628863,"6,363.66 "
Department of Health,NHS Sheffield CCG,31/08/2018,C&M-GMS Cost of Drugs -Prescribing,LOCAL ENHANCED SERVICES,MILL ROAD SURGERY SHEFFIELD,23628876,"1,524.18 "
Department of Health,NHS Sheffield CCG,31/08/2018,C&M-GMS DES Minor Surgery,PRC DELEGATED CO-COMMISSIONING,MILL ROAD SURGERY SHEFFIELD,23628876,"1,675.00 "
Department of Health,NHS Sheffield CCG,31/08/2018,C&M-GMS Global Sum,PRC DELEGATED CO-COMMISSIONING,MILL ROAD SURGERY SHEFFIELD,23628876,"39,796.31 "
Department of Health,NHS Sheffield CCG,31/08/2018,C&M-GMS MPIG Correction Factor,PRC DELEGATED CO-COMMISSIONING,MILL ROAD SURGERY SHEFFIELD,23628876,122.04 
Department of Health,NHS Sheffield CCG,31/08/2018,C&M-GMS PCO Other,PRC DELEGATED CO-COMMISSIONING,MILL ROAD SURGERY SHEFFIELD,23628876,389.44 
Department of Health,NHS Sheffield CCG,31/08/2018,C&M-GMS Prem Notional Rent,PRC DELEGATED CO-COMMISSIONING,MILL ROAD SURGERY SHEFFIELD,23628876,"4,593.33 "
Department of Health,NHS Sheffield CCG,31/08/2018,C&M-GMS Prem Rates,PRC DELEGATED CO-COMMISSIONING,MILL ROAD SURGERY SHEFFIELD,23628876,972.00 
Department of Health,NHS Sheffield CCG,31/08/2018,C&M-GMS Prof Fees Prescribing,PRC DELEGATED CO-COMMISSIONING,MILL ROAD SURGERY SHEFFIELD,23628876,133.40 
Department of Health,NHS Sheffield CCG,31/08/2018,C&M-GMS QOF Aspiration,PRC DELEGATED CO-COMMISSIONING,MILL ROAD SURGERY SHEFFIELD,23628876,"4,960.33 "
Department of Health,NHS Sheffield CCG,31/08/2018,Clinical&Medical-Independent Sector,Mental Health Services - S117 Mental Health,MOORVILLE RESIDENTIAL,23563132,"7,862.23 "
Department of Health,NHS Sheffield CCG,31/08/2018,Cont Care-Learning Disab(<65),CHC ADULT FULLY FUNDED,MOORVILLE RESIDENTIAL,23563132,"19,359.73 "
Department of Health,NHS Sheffield CCG,31/08/2018,Cont Care-Learning Disab(<65),CHC ADULT JOINT FUNDED,MOORVILLE RESIDENTIAL,23563132,"1,173.60 "
Department of Health,NHS Sheffield CCG,31/08/2018,Cont Care-Mental Health (<65),CHC ADULT JOINT FUNDED,MOORVILLE RESIDENTIAL,23563132,475.71 
Department of Health,NHS Sheffield CCG,31/08/2018,C&M-PMS Contract Value,PRC DELEGATED CO-COMMISSIONING,MOSBOROUGH HEALTH CENTRE,23396721,"47,793.53 "
Department of Health,NHS Sheffield CCG,31/08/2018,C&M-PMS DES Minor Surgery,PRC DELEGATED CO-COMMISSIONING,MOSBOROUGH HEALTH CENTRE,23396721,760.00 
Department of Health,NHS Sheffield CCG,31/08/2018,C&M-PMS PCO Other,PRC DELEGATED CO-COMMISSIONING,MOSBOROUGH HEALTH CENTRE,23396721,471.11 
Department of Health,NHS Sheffield CCG,31/08/2018,C&M-PMS Prem Notional Rent,PRC DELEGATED CO-COMMISSIONING,MOSBOROUGH HEALTH CENTRE,23396721,"4,091.67 "
Department of Health,NHS Sheffield CCG,31/08/2018,C&M-PMS Prem Rates,PRC DELEGATED CO-COMMISSIONING,MOSBOROUGH HEALTH CENTRE,23396721,891.00 
Department of Health,NHS Sheffield CCG,31/08/2018,C&M-PMS Prem Water Rates,PRC DELEGATED CO-COMMISSIONING,MOSBOROUGH HEALTH CENTRE,23396721,188.17 
Department of Health,NHS Sheffield CCG,31/08/2018,C&M-PMS QOF Aspiration,PRC DELEGATED CO-COMMISSIONING,MOSBOROUGH HEALTH CENTRE,23396721,"5,763.82 "
Department of Health,NHS Sheffield CCG,31/08/2018,C&M-PMS Contract Value,PRC DELEGATED CO-COMMISSIONING,NETHERGREEN SURGERY,23396723,"62,386.59 "
Department of Health,NHS Sheffield CCG,31/08/2018,C&M-PMS DES Minor Surgery,PRC DELEGATED CO-COMMISSIONING,NETHERGREEN SURGERY,23396723,"1,345.00 "
Department of Health,NHS Sheffield CCG,31/08/2018,C&M-PMS Prem Cost Rent,PRC DELEGATED CO-COMMISSIONING,NETHERGREEN SURGERY,23396723,"5,057.33 "
Department of Health,NHS Sheffield CCG,31/08/2018,C&M-PMS Prem Rates,PRC DELEGATED CO-COMMISSIONING,NETHERGREEN SURGERY,23396723,"1,236.00 "
Department of Health,NHS Sheffield CCG,31/08/2018,C&M-PMS QOF Aspiration,PRC DELEGATED CO-COMMISSIONING,NETHERGREEN SURGERY,23396723,"6,267.38 "
Department of Health,NHS Sheffield CCG,31/08/2018,Cont Care-Physical Disab (<65),CHC ADULT FULLY FUNDED,NEVILLE HEALTH CARE LTD,23364532,"29,328.35 "
Department of Health,NHS Sheffield CCG,31/08/2018,C&M-GMS Prem Other,PRC DELEGATED CO-COMMISSIONING,NHS ENGLAND,23685761,"9,456.99 "
Department of Health,NHS Sheffield CCG,31/08/2018,Contract- Refuse & Clinical Waste,PRC DELEGATED CO-COMMISSIONING,NHS ENGLAND,23685761,"64,237.81 "
Department of Health,NHS Sheffield CCG,31/08/2018,Charges from CSU,BUSINESS INFORMATICS,NHS NORTH OF ENGLAND CSU,23501119,"30,083.00 "
Department of Health,NHS Sheffield CCG,31/08/2018,Rent,CONTINUING HEALTHCARE ASSESSMENT & SUPPORT,NHS PROPERTY SERVICES LTD,23382053,"55,598.95 "
Department of Health,NHS Sheffield CCG,31/08/2018,Rent,ESTATES AND FACILITIES,NHS PROPERTY SERVICES LTD,23382053,"125,505.11 "
Department of Health,NHS Sheffield CCG,31/08/2018,Rent,CONTINUING HEALTHCARE ASSESSMENT & SUPPORT,NHS PROPERTY SERVICES LTD,23458004,"55,598.95 "
Department of Health,NHS Sheffield CCG,31/08/2018,Rent,ESTATES AND FACILITIES,NHS PROPERTY SERVICES LTD,23458004,"125,505.11 "
Department of Health,NHS Sheffield CCG,31/08/2018,Rent,ESTATES AND FACILITIES,NHS PROPERTY SERVICES LTD,23703874,"114,260.88 "
Department of Health,NHS Sheffield CCG,31/08/2018,C&M-GMS Cost of Drugs -Prescribing,LOCAL ENHANCED SERVICES,NORFOLK PARK HEALTH CENTRE,23628886,672.69 
Department of Health,NHS Sheffield CCG,31/08/2018,C&M-GMS DES Minor Surgery,PRC DELEGATED CO-COMMISSIONING,NORFOLK PARK HEALTH CENTRE,23628886,375.00 
Department of Health,NHS Sheffield CCG,31/08/2018,C&M-GMS Global Sum,PRC DELEGATED CO-COMMISSIONING,NORFOLK PARK HEALTH CENTRE,23628886,"36,547.42 "
Department of Health,NHS Sheffield CCG,31/08/2018,C&M-GMS MPIG Correction Factor,PRC DELEGATED CO-COMMISSIONING,NORFOLK PARK HEALTH CENTRE,23628886,924.61 
Department of Health,NHS Sheffield CCG,31/08/2018,C&M-GMS PCO Locum Adop/Pat/Mat,PRC DELEGATED CO-COMMISSIONING,NORFOLK PARK HEALTH CENTRE,23628886,"3,801.88 "
Department of Health,NHS Sheffield CCG,31/08/2018,C&M-GMS Prem Healthcentre Rent,PRC DELEGATED CO-COMMISSIONING,NORFOLK PARK HEALTH CENTRE,23628886,"24,044.86 "
Department of Health,NHS Sheffield CCG,31/08/2018,C&M-GMS Prof Fees Prescribing,PRC DELEGATED CO-COMMISSIONING,NORFOLK PARK HEALTH CENTRE,23628886,71.30 
Department of Health,NHS Sheffield CCG,31/08/2018,C&M-GMS QOF Aspiration,PRC DELEGATED CO-COMMISSIONING,NORFOLK PARK HEALTH CENTRE,23628886,"3,810.65 "
Department of Health,NHS Sheffield CCG,31/08/2018,Hcare Srv Rec Fdtn Trust-Contract Baseline,MENTAL HEALTH CONTRACTS,NORTHUMBERLAND TYNE AND WEAR NHS FOUNDATION TRUST,23343581,"74,816.02 "
Department of Health,NHS Sheffield CCG,31/08/2018,C&M-GMS Cost of Drugs -Prescribing,LOCAL ENHANCED SERVICES,NORWOOD MEDICAL CENTRE SHEFFIELD,23628891,603.32 
Department of Health,NHS Sheffield CCG,31/08/2018,C&M-GMS DES Minor Surgery,PRC DELEGATED CO-COMMISSIONING,NORWOOD MEDICAL CENTRE SHEFFIELD,23628891,"2,500.00 "
Department of Health,NHS Sheffield CCG,31/08/2018,C&M-GMS Global Sum,PRC DELEGATED CO-COMMISSIONING,NORWOOD MEDICAL CENTRE SHEFFIELD,23628891,"63,835.09 "
Department of Health,NHS Sheffield CCG,31/08/2018,C&M-GMS PCO Other,PRC DELEGATED CO-COMMISSIONING,NORWOOD MEDICAL CENTRE SHEFFIELD,23628891,559.17 
Department of Health,NHS Sheffield CCG,31/08/2018,C&M-GMS Prem Notional Rent,PRC DELEGATED CO-COMMISSIONING,NORWOOD MEDICAL CENTRE SHEFFIELD,23628891,"5,187.50 "
Department of Health,NHS Sheffield CCG,31/08/2018,C&M-GMS Prem Water Rates,PRC DELEGATED CO-COMMISSIONING,NORWOOD MEDICAL CENTRE SHEFFIELD,23628891,245.87 
Department of Health,NHS Sheffield CCG,31/08/2018,C&M-GMS Prof Fees Prescribing,PRC DELEGATED CO-COMMISSIONING,NORWOOD MEDICAL CENTRE SHEFFIELD,23628891,170.20 
Department of Health,NHS Sheffield CCG,31/08/2018,C&M-GMS QOF Aspiration,PRC DELEGATED CO-COMMISSIONING,NORWOOD MEDICAL CENTRE SHEFFIELD,23628891,"8,350.37 "
Department of Health,NHS Sheffield CCG,31/08/2018,Hcare Srv Rec NHS Trust-Contract Baseline,ACUTE COMMISSIONING,NOTTINGHAM UNIVERSITY HOSPITALS NHS TRUST,23562658,"28,040.00 "
Department of Health,NHS Sheffield CCG,31/08/2018,C&M-GMS Cost of Drugs -Dispensing,LOCAL ENHANCED SERVICES,OUGHTIBRIDGE SURGERY,23628896,"30,561.74 "
Department of Health,NHS Sheffield CCG,31/08/2018,C&M-GMS DES Minor Surgery,PRC DELEGATED CO-COMMISSIONING,OUGHTIBRIDGE SURGERY,23628896,640.00 
Department of Health,NHS Sheffield CCG,31/08/2018,C&M-GMS Global Sum,PRC DELEGATED CO-COMMISSIONING,OUGHTIBRIDGE SURGERY,23628896,"42,315.23 "
Department of Health,NHS Sheffield CCG,31/08/2018,C&M-GMS Prem Notional Rent,PRC DELEGATED CO-COMMISSIONING,OUGHTIBRIDGE SURGERY,23628896,"3,957.33 "
Department of Health,NHS Sheffield CCG,31/08/2018,C&M-GMS Prem Rates,PRC DELEGATED CO-COMMISSIONING,OUGHTIBRIDGE SURGERY,23628896,976.00 
Department of Health,NHS Sheffield CCG,31/08/2018,C&M-GMS Prof Fees Dispensing,PRC DELEGATED CO-COMMISSIONING,OUGHTIBRIDGE SURGERY,23628896,"4,650.21 "
Department of Health,NHS Sheffield CCG,31/08/2018,C&M-GMS PrscrptnChrgsColl&RmttdbyGP,LOCAL ENHANCED SERVICES,OUGHTIBRIDGE SURGERY,23628896,677.60 
Department of Health,NHS Sheffield CCG,31/08/2018,C&M-GMS QOF Aspiration,PRC DELEGATED CO-COMMISSIONING,OUGHTIBRIDGE SURGERY,23628896,"4,454.94 "
Department of Health,NHS Sheffield CCG,31/08/2018,C&M-GMS Cost of Drugs -Dispensing,LOCAL ENHANCED SERVICES,OUGHTIBRIDGE SURGERY,23647000,"(15,796.55)"
Department of Health,NHS Sheffield CCG,31/08/2018,C&M-GMS GP Statutory Levy,PRC DELEGATED CO-COMMISSIONING,OUGHTIBRIDGE SURGERY,23647000,(175.02)
Department of Health,NHS Sheffield CCG,31/08/2018,C&M-GMS PrscChrgsCll&RmttdbyGPCntra,PRC DELEGATED CO-COMMISSIONING,OUGHTIBRIDGE SURGERY,23647000,(677.60)
Department of Health,NHS Sheffield CCG,31/08/2018,C&M-GMS Voluntary Levy,PRC DELEGATED CO-COMMISSIONING,OUGHTIBRIDGE SURGERY,23647000,(29.17)
Department of Health,NHS Sheffield CCG,31/08/2018,C&M-PMS Contract Value,PRC DELEGATED CO-COMMISSIONING,OWLTHORPE MEDICAL CENTRE,23419306,"33,367.91 "
Department of Health,NHS Sheffield CCG,31/08/2018,C&M-PMS Out of Hours Opt Outs,PRC DELEGATED CO-COMMISSIONING,OWLTHORPE MEDICAL CENTRE,23419306,4.14 
Department of Health,NHS Sheffield CCG,31/08/2018,C&M-PMS PCO Locum Adop/Pat/Mat,PRC DELEGATED CO-COMMISSIONING,OWLTHORPE MEDICAL CENTRE,23419306,"44,042.52 "
Department of Health,NHS Sheffield CCG,31/08/2018,C&M-PMS Prem Actual Rent,PRC DELEGATED CO-COMMISSIONING,OWLTHORPE MEDICAL CENTRE,23419306,"7,539.58 "
Department of Health,NHS Sheffield CCG,31/08/2018,C&M-PMS QOF Aspiration,PRC DELEGATED CO-COMMISSIONING,OWLTHORPE MEDICAL CENTRE,23419306,"4,022.05 "
Department of Health,NHS Sheffield CCG,31/08/2018,C&M-PMS Contract Value,PRC DELEGATED CO-COMMISSIONING,PAGE HALL MEDICAL CENTRE,23396725,"57,288.09 "
Department of Health,NHS Sheffield CCG,31/08/2018,C&M-PMS DES Minor Surgery,PRC DELEGATED CO-COMMISSIONING,PAGE HALL MEDICAL CENTRE,23396725,360.00 
Department of Health,NHS Sheffield CCG,31/08/2018,C&M-PMS Prem Notional Rent,PRC DELEGATED CO-COMMISSIONING,PAGE HALL MEDICAL CENTRE,23396725,"4,833.33 "
Department of Health,NHS Sheffield CCG,31/08/2018,C&M-PMS QOF Aspiration,PRC DELEGATED CO-COMMISSIONING,PAGE HALL MEDICAL CENTRE,23396725,"4,906.36 "
Department of Health,NHS Sheffield CCG,31/08/2018,C&M-PMS Contract Value,PRC DELEGATED CO-COMMISSIONING,PITSMOOR SURGERY,23396727,"76,146.89 "
Department of Health,NHS Sheffield CCG,31/08/2018,C&M-PMS DES Minor Surgery,PRC DELEGATED CO-COMMISSIONING,PITSMOOR SURGERY,23396727,"1,935.00 "
Department of Health,NHS Sheffield CCG,31/08/2018,C&M-PMS Out of Hours Opt Outs,PRC DELEGATED CO-COMMISSIONING,PITSMOOR SURGERY,23396727,31.41 
Department of Health,NHS Sheffield CCG,31/08/2018,C&M-PMS Prem Notional Rent,PRC DELEGATED CO-COMMISSIONING,PITSMOOR SURGERY,23396727,"9,650.00 "
Department of Health,NHS Sheffield CCG,31/08/2018,C&M-PMS Prem Rates,PRC DELEGATED CO-COMMISSIONING,PITSMOOR SURGERY,23396727,"2,154.00 "
Department of Health,NHS Sheffield CCG,31/08/2018,C&M-PMS QOF Aspiration,PRC DELEGATED CO-COMMISSIONING,PITSMOOR SURGERY,23396727,"7,079.26 "
Department of Health,NHS Sheffield CCG,31/08/2018,C&M-PMS Contract Value,PRC DELEGATED CO-COMMISSIONING,PORTER BROOK MEDICAL CENTRE,23396728,"(14,890.72)"
Department of Health,NHS Sheffield CCG,31/08/2018,C&M-PMS GP Statutory Levy,PRC DELEGATED CO-COMMISSIONING,PORTER BROOK MEDICAL CENTRE,23396728,(831.27)
Department of Health,NHS Sheffield CCG,31/08/2018,C&M-PMS Out of Hours Opt Outs,PRC DELEGATED CO-COMMISSIONING,PORTER BROOK MEDICAL CENTRE,23396728,"(7,609.06)"
Department of Health,NHS Sheffield CCG,31/08/2018,C&M-PMS Voluntary Levy,PRC DELEGATED CO-COMMISSIONING,PORTER BROOK MEDICAL CENTRE,23396728,(138.55)
Department of Health,NHS Sheffield CCG,31/08/2018,C&M-PMS Contract Value,PRC DELEGATED CO-COMMISSIONING,PORTER BROOK MEDICAL CENTRE,23396729,"162,370.60 "
Department of Health,NHS Sheffield CCG,31/08/2018,C&M-PMS DES Minor Surgery,PRC DELEGATED CO-COMMISSIONING,PORTER BROOK MEDICAL CENTRE,23396729,"5,715.00 "
Department of Health,NHS Sheffield CCG,31/08/2018,C&M-PMS Out of Hours Opt Outs,PRC DELEGATED CO-COMMISSIONING,PORTER BROOK MEDICAL CENTRE,23396729,732.40 
Department of Health,NHS Sheffield CCG,31/08/2018,C&M-PMS PCO Other,PRC DELEGATED CO-COMMISSIONING,PORTER BROOK MEDICAL CENTRE,23396729,"1,902.44 "
Department of Health,NHS Sheffield CCG,31/08/2018,C&M-PMS Prem Actual Rent,PRC DELEGATED CO-COMMISSIONING,PORTER BROOK MEDICAL CENTRE,23396729,"1,333.33 "
Department of Health,NHS Sheffield CCG,31/08/2018,C&M-PMS Prem Notional Rent,PRC DELEGATED CO-COMMISSIONING,PORTER BROOK MEDICAL CENTRE,23396729,"9,666.67 "
Department of Health,NHS Sheffield CCG,31/08/2018,C&M-PMS Prem Rates,PRC DELEGATED CO-COMMISSIONING,PORTER BROOK MEDICAL CENTRE,23396729,"2,315.00 "
Department of Health,NHS Sheffield CCG,31/08/2018,C&M-PMS QOF Aspiration,PRC DELEGATED CO-COMMISSIONING,PORTER BROOK MEDICAL CENTRE,23396729,"8,562.06 "
Department of Health,NHS Sheffield CCG,31/08/2018,Clinical&Medical-Commercial Sector,PATIENT TRANSPORT,PREMIER CARE DIRECT LTD,23386508,"91,807.22 "
Department of Health,NHS Sheffield CCG,31/08/2018,Clinical&Medical-Commercial Sector,PATIENT TRANSPORT,PREMIER CARE DIRECT LTD,23566481,"112,480.54 "
Department of Health,NHS Sheffield CCG,31/08/2018,Clinical&Medical-Commercial Sector,PATIENT TRANSPORT,PREMIER CARE DIRECT LTD,23705518,"62,019.97 "
Department of Health,NHS Sheffield CCG,31/08/2018,Clinical&Medical-Commercial Sector,PATIENT TRANSPORT,PREMIER CARE DIRECT LTD,23705519,"62,019.97 "
Department of Health,NHS Sheffield CCG,31/08/2018,C&M-GMS LES Basket of Procedures,LOCAL ENHANCED SERVICES,PRIMARY CARE SHEFFIELD LTD,23382205,"26,564.00 "
Department of Health,NHS Sheffield CCG,31/08/2018,C&M-APMS DES Extended Hours Access,GP FORWARD VIEW,PRIMARY CARE SHEFFIELD LTD,23695245,"291,333.33 "
Department of Health,NHS Sheffield CCG,31/08/2018,C&M-PMS Contract Value,PRC DELEGATED CO-COMMISSIONING,RICHMOND MEDICAL CENTRE,23396731,"64,900.48 "
Department of Health,NHS Sheffield CCG,31/08/2018,C&M-PMS DES Minor Surgery,PRC DELEGATED CO-COMMISSIONING,RICHMOND MEDICAL CENTRE,23396731,"2,655.00 "
Department of Health,NHS Sheffield CCG,31/08/2018,C&M-PMS PCO Other,PRC DELEGATED CO-COMMISSIONING,RICHMOND MEDICAL CENTRE,23396731,617.78 
Department of Health,NHS Sheffield CCG,31/08/2018,C&M-PMS Prem Notional Rent,PRC DELEGATED CO-COMMISSIONING,RICHMOND MEDICAL CENTRE,23396731,"4,731.00 "
Department of Health,NHS Sheffield CCG,31/08/2018,C&M-PMS Prem Rates,PRC DELEGATED CO-COMMISSIONING,RICHMOND MEDICAL CENTRE,23396731,"1,425.00 "
Department of Health,NHS Sheffield CCG,31/08/2018,C&M-PMS QOF Aspiration,PRC DELEGATED CO-COMMISSIONING,RICHMOND MEDICAL CENTRE,23396731,"8,188.48 "
Department of Health,NHS Sheffield CCG,31/08/2018,Cont Care-Physical Disab (<65),CHC ADULT FULLY FUNDED,ROSEBERRY CARE CENTRES,23343762,"45,284.19 "
Department of Health,NHS Sheffield CCG,31/08/2018,Cont Care-Funded Nursing Care Allow,FUNDED NURSING CARE,ROSEBERRY CARE CENTRES,23364660,"37,490.50 "
Department of Health,NHS Sheffield CCG,31/08/2018,Hcare Srv Rec Fdtn Trust-Contract Baseline,ACUTE COMMISSIONING,ROTHERHAM NHS FOUNDATION TRUST,23382061,"137,605.00 "
Department of Health,NHS Sheffield CCG,31/08/2018,Hcare Srv Rec Fdtn Trust-Contract Baseline,ACUTE COMMISSIONING,ROTHERHAM NHS FOUNDATION TRUST,23382091,"428,814.00 "
Department of Health,NHS Sheffield CCG,31/08/2018,C&M-PMS Contract Value,PRC DELEGATED CO-COMMISSIONING,RUSTLINGS ROAD MEDICAL CENTRE,23396735,"27,169.09 "
Department of Health,NHS Sheffield CCG,31/08/2018,C&M-PMS PCO Other,PRC DELEGATED CO-COMMISSIONING,RUSTLINGS ROAD MEDICAL CENTRE,23396735,347.11 
Department of Health,NHS Sheffield CCG,31/08/2018,C&M-PMS Prem Notional Rent,PRC DELEGATED CO-COMMISSIONING,RUSTLINGS ROAD MEDICAL CENTRE,23396735,"1,167.92 "
Department of Health,NHS Sheffield CCG,31/08/2018,C&M-PMS QOF Aspiration,PRC DELEGATED CO-COMMISSIONING,RUSTLINGS ROAD MEDICAL CENTRE,23396735,"2,389.45 "
Department of Health,NHS Sheffield CCG,31/08/2018,Cont Care-Funded Nursing Care Allow,FUNDED NURSING CARE,SCARSDALE GRANGE NURSING HOME,23364784,"25,667.02 "
Department of Health,NHS Sheffield CCG,31/08/2018,Cont Care-Physical Disab (<65),CHC ADULT FULLY FUNDED,SEVEN HILLS NURSING HOME,23364796,"33,445.43 "
Department of Health,NHS Sheffield CCG,31/08/2018,C&M-GMS Cost of Drugs -Prescribing,LOCAL ENHANCED SERVICES,SHARROW LANE MEDICAL CENTRE,23628907,"1,017.84 "
Department of Health,NHS Sheffield CCG,31/08/2018,C&M-GMS DES Minor Surgery,PRC DELEGATED CO-COMMISSIONING,SHARROW LANE MEDICAL CENTRE,23628907,160.00 
Department of Health,NHS Sheffield CCG,31/08/2018,C&M-GMS Global Sum,PRC DELEGATED CO-COMMISSIONING,SHARROW LANE MEDICAL CENTRE,23628907,"22,577.90 "
Department of Health,NHS Sheffield CCG,31/08/2018,C&M-GMS MPIG Correction Factor,PRC DELEGATED CO-COMMISSIONING,SHARROW LANE MEDICAL CENTRE,23628907,"1,960.32 "
Department of Health,NHS Sheffield CCG,31/08/2018,C&M-GMS PCO Other,PRC DELEGATED CO-COMMISSIONING,SHARROW LANE MEDICAL CENTRE,23628907,302.53 
Department of Health,NHS Sheffield CCG,31/08/2018,C&M-GMS Prem Notional Rent,PRC DELEGATED CO-COMMISSIONING,SHARROW LANE MEDICAL CENTRE,23628907,"5,002.61 "
Department of Health,NHS Sheffield CCG,31/08/2018,C&M-GMS Prem Rates,PRC DELEGATED CO-COMMISSIONING,SHARROW LANE MEDICAL CENTRE,23628907,517.00 
Department of Health,NHS Sheffield CCG,31/08/2018,C&M-GMS Prof Fees Prescribing,PRC DELEGATED CO-COMMISSIONING,SHARROW LANE MEDICAL CENTRE,23628907,151.80 
Department of Health,NHS Sheffield CCG,31/08/2018,C&M-GMS QOF Aspiration,PRC DELEGATED CO-COMMISSIONING,SHARROW LANE MEDICAL CENTRE,23628907,"2,521.19 "
Department of Health,NHS Sheffield CCG,31/08/2018,Hcare Srv Rec Fdtn Trust-CQUIN,ACUTE CHILDRENS SERVICES,SHEFFIELD CHILDRENS NHS FOUNDATION TRUST,23286997,"32,003.00 "
Department of Health,NHS Sheffield CCG,31/08/2018,Hcare Srv Rec Fdtn Trust-CQUIN,COMMUNITY SERVICES,SHEFFIELD CHILDRENS NHS FOUNDATION TRUST,23286997,"3,362.00 "
Department of Health,NHS Sheffield CCG,31/08/2018,Hcare Srv Rec Fdtn Trust-Contract Baseline,ACUTE CHILDRENS SERVICES,SHEFFIELD CHILDRENS NHS FOUNDATION TRUST,23286997,"(24,347.37)"
Department of Health,NHS Sheffield CCG,31/08/2018,Hcare Srv Rec Fdtn Trust-Contract Baseline,CHILD AND ADOLESCENT MENTAL HEALTH,SHEFFIELD CHILDRENS NHS FOUNDATION TRUST,23286997,"13,355.00 "
Department of Health,NHS Sheffield CCG,31/08/2018,Hcare Srv Rec Fdtn Trust-Contract Baseline,COMMUNITY SERVICES,SHEFFIELD CHILDRENS NHS FOUNDATION TRUST,23286997,"(24,936.00)"
Department of Health,NHS Sheffield CCG,31/08/2018,Hcare Srv Rec Fdtn Trust-Contract Baseline,HIGH COST DRUGS,SHEFFIELD CHILDRENS NHS FOUNDATION TRUST,23286997,"21,436.00 "
Department of Health,NHS Sheffield CCG,31/08/2018,Hcare Srv Rec Fdtn Trust-Contract Baseline,MENTAL HEALTH CONTRACTS,SHEFFIELD CHILDRENS NHS FOUNDATION TRUST,23286997,"(2,371.00)"
Department of Health,NHS Sheffield CCG,31/08/2018,Hcare Srv Rec Fdtn Trust-Contract Baseline,PLANNED CARE,SHEFFIELD CHILDRENS NHS FOUNDATION TRUST,23286997,"48,730.00 "
Department of Health,NHS Sheffield CCG,31/08/2018,Hcare Srv Rec Fdtn Trust-Contract Baseline,URGENT CARE,SHEFFIELD CHILDRENS NHS FOUNDATION TRUST,23286997,"(106,471.00)"
Department of Health,NHS Sheffield CCG,31/08/2018,Hcare Srv Rec Fdtn Trust-CQUIN,ACUTE CHILDRENS SERVICES,SHEFFIELD CHILDRENS NHS FOUNDATION TRUST,23382078,"33,781.00 "
Department of Health,NHS Sheffield CCG,31/08/2018,Hcare Srv Rec Fdtn Trust-CQUIN,COMMUNITY SERVICES,SHEFFIELD CHILDRENS NHS FOUNDATION TRUST,23382078,"3,984.00 "
Department of Health,NHS Sheffield CCG,31/08/2018,Hcare Srv Rec Fdtn Trust-Contract Baseline,ACUTE CHILDRENS SERVICES,SHEFFIELD CHILDRENS NHS FOUNDATION TRUST,23382078,"259,425.79 "
Department of Health,NHS Sheffield CCG,31/08/2018,Hcare Srv Rec Fdtn Trust-Contract Baseline,CHILD AND ADOLESCENT MENTAL HEALTH,SHEFFIELD CHILDRENS NHS FOUNDATION TRUST,23382078,"429,451.00 "
Department of Health,NHS Sheffield CCG,31/08/2018,Hcare Srv Rec Fdtn Trust-Contract Baseline,COMMUNITY SERVICES,SHEFFIELD CHILDRENS NHS FOUNDATION TRUST,23382078,"318,731.00 "
Department of Health,NHS Sheffield CCG,31/08/2018,Hcare Srv Rec Fdtn Trust-Contract Baseline,HIGH COST DRUGS,SHEFFIELD CHILDRENS NHS FOUNDATION TRUST,23382078,"62,433.00 "
Department of Health,NHS Sheffield CCG,31/08/2018,Hcare Srv Rec Fdtn Trust-Contract Baseline,MENTAL HEALTH CONTRACTS,SHEFFIELD CHILDRENS NHS FOUNDATION TRUST,23382078,"5,096.00 "
Department of Health,NHS Sheffield CCG,31/08/2018,Hcare Srv Rec Fdtn Trust-Contract Baseline,PLANNED CARE,SHEFFIELD CHILDRENS NHS FOUNDATION TRUST,23382078,"956,921.00 "
Department of Health,NHS Sheffield CCG,31/08/2018,Hcare Srv Rec Fdtn Trust-Contract Baseline,SAFEGUARDING,SHEFFIELD CHILDRENS NHS FOUNDATION TRUST,23382078,"33,664.00 "
Department of Health,NHS Sheffield CCG,31/08/2018,Hcare Srv Rec Fdtn Trust-Contract Baseline,URGENT CARE,SHEFFIELD CHILDRENS NHS FOUNDATION TRUST,23382078,"983,413.00 "
Department of Health,NHS Sheffield CCG,31/08/2018,Clinical&Medical-Othe Public Sector,COMMUNITY SERVICES,SHEFFIELD CITY COUNCIL,23382353,"21,831.00 "
Department of Health,NHS Sheffield CCG,31/08/2018,Clinical&Medical-Othe Public Sector,MENTAL HEALTH SERVICES - COLLABORATIVE COMMISSIONING,SHEFFIELD CITY COUNCIL,23382353,"16,919.00 "
Department of Health,NHS Sheffield CCG,31/08/2018,Clinical&Medical-Othe Public Sector,REABLEMENT,SHEFFIELD CITY COUNCIL,23382353,"160,417.00 "
Department of Health,NHS Sheffield CCG,31/08/2018,Clinical&Medical-Othe Public Sector,SAFEGUARDING,SHEFFIELD CITY COUNCIL,23382353,"15,324.00 "
Department of Health,NHS Sheffield CCG,31/08/2018,Soc Care-Joint H&C Teams/Working,INTERMEDIATE CARE,SHEFFIELD CITY COUNCIL,23382353,"151,447.00 "
Department of Health,NHS Sheffield CCG,31/08/2018,Soc Care-Other Soc Care,COMMUNITY SERVICES,SHEFFIELD CITY COUNCIL,23382353,"1,467,750.00 "
Department of Health,NHS Sheffield CCG,31/08/2018,Soc Care-Support Prim Care,COMMUNITY SERVICES,SHEFFIELD CITY COUNCIL,23382353,"58,000.00 "
Department of Health,NHS Sheffield CCG,31/08/2018,Services From Local Authorities,MENTAL HEALTH SERVICES - COLLABORATIVE COMMISSIONING,SHEFFIELD CITY COUNCIL,23458001,"27,617.24 "
Department of Health,NHS Sheffield CCG,31/08/2018,Cont Care-Physical Disab (65+),CHC ADULT FULLY FUNDED,SHEFFIELD CITY COUNCIL,23562693,"903,312.12 "
Department of Health,NHS Sheffield CCG,31/08/2018,Cont Care- Prior Year Payments,CHC ADULT FULLY FUNDED,SHEFFIELD CITY COUNCIL,23562697,"207,942.38 "
Department of Health,NHS Sheffield CCG,31/08/2018,C&M-APMS Contract Value,PRC DELEGATED CO-COMMISSIONING,SHEFFIELD HEALTH & SOCIAL CARE NHS FOUNDATION TRUST,23398506,"122,173.19 "
Department of Health,NHS Sheffield CCG,31/08/2018,C&M-APMS DES Minor Surgery,PRC DELEGATED CO-COMMISSIONING,SHEFFIELD HEALTH & SOCIAL CARE NHS FOUNDATION TRUST,23398506,380.00 
Department of Health,NHS Sheffield CCG,31/08/2018,C&M-APMS OOH Opt Outs,PRC DELEGATED CO-COMMISSIONING,SHEFFIELD HEALTH & SOCIAL CARE NHS FOUNDATION TRUST,23398506,5.00 
Department of Health,NHS Sheffield CCG,31/08/2018,C&M-APMS Prem Actual Rent,PRC DELEGATED CO-COMMISSIONING,SHEFFIELD HEALTH & SOCIAL CARE NHS FOUNDATION TRUST,23398506,"5,169.68 "
Department of Health,NHS Sheffield CCG,31/08/2018,C&M-APMS Prem Healthcentre Rent,PRC DELEGATED CO-COMMISSIONING,SHEFFIELD HEALTH & SOCIAL CARE NHS FOUNDATION TRUST,23398506,"59,021.14 "
Department of Health,NHS Sheffield CCG,31/08/2018,C&M-APMS Prem Notional Rent,PRC DELEGATED CO-COMMISSIONING,SHEFFIELD HEALTH & SOCIAL CARE NHS FOUNDATION TRUST,23398506,"2,804.17 "
Department of Health,NHS Sheffield CCG,31/08/2018,C&M-PMS Contract Value,PRC DELEGATED CO-COMMISSIONING,SHEFFIELD HEALTH & SOCIAL CARE NHS FOUNDATION TRUST,23398506,"2,915.63 "
Department of Health,NHS Sheffield CCG,31/08/2018,C&M-PMS Out of Hours Opt Outs,PRC DELEGATED CO-COMMISSIONING,SHEFFIELD HEALTH & SOCIAL CARE NHS FOUNDATION TRUST,23398506,107.98 
Department of Health,NHS Sheffield CCG,31/08/2018,C&M-PMS QOF Aspiration,PRC DELEGATED CO-COMMISSIONING,SHEFFIELD HEALTH & SOCIAL CARE NHS FOUNDATION TRUST,23398506,"11,714.38 "
Department of Health,NHS Sheffield CCG,31/08/2018,C&M-APMS Contract Value,PRC DELEGATED CO-COMMISSIONING,SHEFFIELD HEALTH & SOCIAL CARE NHS FOUNDATION TRUST,23398509,"26,776.80 "
Department of Health,NHS Sheffield CCG,31/08/2018,C&M-APMS OOH Opt Outs,PRC DELEGATED CO-COMMISSIONING,SHEFFIELD HEALTH & SOCIAL CARE NHS FOUNDATION TRUST,23398509,8.11 
Department of Health,NHS Sheffield CCG,31/08/2018,C&M-PMS Contract Value,PRC DELEGATED CO-COMMISSIONING,SHEFFIELD HEALTH & SOCIAL CARE NHS FOUNDATION TRUST,23398509,639.51 
Department of Health,NHS Sheffield CCG,31/08/2018,C&M-PMS Out of Hours Opt Outs,PRC DELEGATED CO-COMMISSIONING,SHEFFIELD HEALTH & SOCIAL CARE NHS FOUNDATION TRUST,23398509,23.68 
Department of Health,NHS Sheffield CCG,31/08/2018,C&M-PMS QOF Aspiration,PRC DELEGATED CO-COMMISSIONING,SHEFFIELD HEALTH & SOCIAL CARE NHS FOUNDATION TRUST,23398509,"1,425.29 "
Department of Health,NHS Sheffield CCG,31/08/2018,Hcare Srv Rec Fdtn Trust-Contract Baseline,MENTAL HEALTH CONTRACTS,SHEFFIELD HEALTH & SOCIAL CARE NHS FOUNDATION TRUST,23480480,"6,391,179.25 "
Department of Health,NHS Sheffield CCG,31/08/2018,Cont Care-NHSFT-Adult 100% Funded,CHC ADULT FULLY FUNDED,SHEFFIELD HEALTH & SOCIAL CARE NHS FOUNDATION TRUST,23562706,"240,830.02 "
Department of Health,NHS Sheffield CCG,31/08/2018,Hcare Srv Rec Fdtn Trust-Contract Baseline,ACUTE COMMISSIONING,SHEFFIELD TEACHING HOSPITALS NHS FOUNDATION TRUST,23343559,"1,280,880.00 "
Department of Health,NHS Sheffield CCG,31/08/2018,Hcare Srv Rec Fdtn Trust-Contract Baseline,ACUTE COMMISSIONING,SHEFFIELD TEACHING HOSPITALS NHS FOUNDATION TRUST,23343561,"3,905,387.00 "
Department of Health,NHS Sheffield CCG,31/08/2018,Hcare Srv Rec Fdtn Trust-Contract Baseline,ACUTE COMMISSIONING,SHEFFIELD TEACHING HOSPITALS NHS FOUNDATION TRUST,23343563,"27,862,481.00 "
Department of Health,NHS Sheffield CCG,31/08/2018,Hcare Srv Rec Fdtn Trust-Contract Baseline,ACUTE COMMISSIONING,SHEFFIELD TEACHING HOSPITALS NHS FOUNDATION TRUST,23343564,"336,801.00 "
Department of Health,NHS Sheffield CCG,31/08/2018,C&M-GMS Cost of Drugs -Prescribing,LOCAL ENHANCED SERVICES,SHIREGREEN MEDICAL CENTRE,23628917,742.60 
Department of Health,NHS Sheffield CCG,31/08/2018,C&M-GMS Global Sum,PRC DELEGATED CO-COMMISSIONING,SHIREGREEN MEDICAL CENTRE,23628917,"57,658.55 "
Department of Health,NHS Sheffield CCG,31/08/2018,C&M-GMS MPIG Correction Factor,PRC DELEGATED CO-COMMISSIONING,SHIREGREEN MEDICAL CENTRE,23628917,453.69 
Department of Health,NHS Sheffield CCG,31/08/2018,C&M-GMS PCO Other,PRC DELEGATED CO-COMMISSIONING,SHIREGREEN MEDICAL CENTRE,23628917,"2,206.88 "
Department of Health,NHS Sheffield CCG,31/08/2018,C&M-GMS Prem Cost Rent,PRC DELEGATED CO-COMMISSIONING,SHIREGREEN MEDICAL CENTRE,23628917,"1,792.33 "
Department of Health,NHS Sheffield CCG,31/08/2018,C&M-GMS Prem Notional Rent,PRC DELEGATED CO-COMMISSIONING,SHIREGREEN MEDICAL CENTRE,23628917,"5,375.00 "
Department of Health,NHS Sheffield CCG,31/08/2018,C&M-GMS Prem Rates,PRC DELEGATED CO-COMMISSIONING,SHIREGREEN MEDICAL CENTRE,23628917,"9,223.75 "
Department of Health,NHS Sheffield CCG,31/08/2018,C&M-GMS Prof Fees Prescribing,PRC DELEGATED CO-COMMISSIONING,SHIREGREEN MEDICAL CENTRE,23628917,94.30 
Department of Health,NHS Sheffield CCG,31/08/2018,C&M-GMS QOF Aspiration,PRC DELEGATED CO-COMMISSIONING,SHIREGREEN MEDICAL CENTRE,23628917,"6,765.83 "
Department of Health,NHS Sheffield CCG,31/08/2018,C&M-PMS Contract Value,PRC DELEGATED CO-COMMISSIONING,SLOAN MEDICAL CENTRE,23396737,"92,939.32 "
Department of Health,NHS Sheffield CCG,31/08/2018,C&M-PMS DES Minor Surgery,PRC DELEGATED CO-COMMISSIONING,SLOAN MEDICAL CENTRE,23396737,"3,350.00 "
Department of Health,NHS Sheffield CCG,31/08/2018,C&M-PMS PCO Other,PRC DELEGATED CO-COMMISSIONING,SLOAN MEDICAL CENTRE,23396737,879.11 
Department of Health,NHS Sheffield CCG,31/08/2018,C&M-PMS Prem Actual Rent,PRC DELEGATED CO-COMMISSIONING,SLOAN MEDICAL CENTRE,23396737,"15,535.83 "
Department of Health,NHS Sheffield CCG,31/08/2018,C&M-PMS Prem Notional Rent,PRC DELEGATED CO-COMMISSIONING,SLOAN MEDICAL CENTRE,23396737,608.33 
Department of Health,NHS Sheffield CCG,31/08/2018,C&M-PMS Prem Rates,PRC DELEGATED CO-COMMISSIONING,SLOAN MEDICAL CENTRE,23396737,"3,083.00 "
Department of Health,NHS Sheffield CCG,31/08/2018,C&M-PMS QOF Aspiration,PRC DELEGATED CO-COMMISSIONING,SLOAN MEDICAL CENTRE,23396737,"9,952.56 "
Department of Health,NHS Sheffield CCG,31/08/2018,C&M-PMS Contract Value,PRC DELEGATED CO-COMMISSIONING,SOTHALL MEDICAL CENTRE,23396738,(113.86)
Department of Health,NHS Sheffield CCG,31/08/2018,C&M-PMS GP Statutory Levy,PRC DELEGATED CO-COMMISSIONING,SOTHALL MEDICAL CENTRE,23396738,(305.16)
Department of Health,NHS Sheffield CCG,31/08/2018,C&M-PMS Out of Hours Opt Outs,PRC DELEGATED CO-COMMISSIONING,SOTHALL MEDICAL CENTRE,23396738,"(3,297.57)"
Department of Health,NHS Sheffield CCG,31/08/2018,C&M-PMS Voluntary Levy,PRC DELEGATED CO-COMMISSIONING,SOTHALL MEDICAL CENTRE,23396738,(50.86)
Department of Health,NHS Sheffield CCG,31/08/2018,C&M-PMS Contract Value,PRC DELEGATED CO-COMMISSIONING,SOTHALL MEDICAL CENTRE,23396739,"70,160.45 "
Department of Health,NHS Sheffield CCG,31/08/2018,C&M-PMS DES Minor Surgery,PRC DELEGATED CO-COMMISSIONING,SOTHALL MEDICAL CENTRE,23396739,"1,540.00 "
Department of Health,NHS Sheffield CCG,31/08/2018,C&M-PMS Out of Hours Opt Outs,PRC DELEGATED CO-COMMISSIONING,SOTHALL MEDICAL CENTRE,23396739,5.60 
Department of Health,NHS Sheffield CCG,31/08/2018,C&M-PMS PCO Other,PRC DELEGATED CO-COMMISSIONING,SOTHALL MEDICAL CENTRE,23396739,701.89 
Department of Health,NHS Sheffield CCG,31/08/2018,C&M-PMS Prem Notional Rent,PRC DELEGATED CO-COMMISSIONING,SOTHALL MEDICAL CENTRE,23396739,"5,116.67 "
Department of Health,NHS Sheffield CCG,31/08/2018,C&M-PMS Prem Rates,PRC DELEGATED CO-COMMISSIONING,SOTHALL MEDICAL CENTRE,23396739,"1,251.00 "
Department of Health,NHS Sheffield CCG,31/08/2018,C&M-PMS QOF Aspiration,PRC DELEGATED CO-COMMISSIONING,SOTHALL MEDICAL CENTRE,23396739,"8,691.35 "
Department of Health,NHS Sheffield CCG,31/08/2018,Cont Care- Adult 100% Fully Funded,CHC ADULT FULLY FUNDED,SOUTH YORKSHIRE HOUSING ASSOCIATION LTD,23343754,"81,249.96 "
Department of Health,NHS Sheffield CCG,31/08/2018,Cont Care-Physical Disab (<65),CHC ADULT FULLY FUNDED,SOUTH YORKSHIRE HOUSING ASSOCIATION LTD,23343759,"96,510.45 "
Department of Health,NHS Sheffield CCG,31/08/2018,Cont Care- Adult 100% Fully Funded,CHC ADULT FULLY FUNDED,SOUTH YORKSHIRE HOUSING ASSOCIATION LTD,23364624,"25,500.00 "
Department of Health,NHS Sheffield CCG,31/08/2018,Clinical&Medical-Independent Sector,MENTAL HEALTH CONTRACTS,SOUTH YORKSHIRE HOUSING ASSOCIATION LTD,23364626,"34,435.00 "
Department of Health,NHS Sheffield CCG,31/08/2018,C&M-PMS Contract Value,PRC DELEGATED CO-COMMISSIONING,SOUTHEY GREEN MEDICAL CENTRE,23396741,"25,880.34 "
Department of Health,NHS Sheffield CCG,31/08/2018,C&M-PMS Out of Hours Opt Outs,PRC DELEGATED CO-COMMISSIONING,SOUTHEY GREEN MEDICAL CENTRE,23396741,68.45 
Department of Health,NHS Sheffield CCG,31/08/2018,C&M-PMS Prem Notional Rent,PRC DELEGATED CO-COMMISSIONING,SOUTHEY GREEN MEDICAL CENTRE,23396741,"3,362.50 "
Department of Health,NHS Sheffield CCG,31/08/2018,C&M-PMS QOF Aspiration,PRC DELEGATED CO-COMMISSIONING,SOUTHEY GREEN MEDICAL CENTRE,23396741,"2,539.36 "
Department of Health,NHS Sheffield CCG,31/08/2018,C&M-GMS Cost of Drugs -Prescribing,LOCAL ENHANCED SERVICES,STANNINGTON MEDICAL CENTRE,23628925,688.46 
Department of Health,NHS Sheffield CCG,31/08/2018,C&M-GMS DES Minor Surgery,PRC DELEGATED CO-COMMISSIONING,STANNINGTON MEDICAL CENTRE,23628925,365.00 
Department of Health,NHS Sheffield CCG,31/08/2018,C&M-GMS Global Sum,PRC DELEGATED CO-COMMISSIONING,STANNINGTON MEDICAL CENTRE,23628925,"24,130.98 "
Department of Health,NHS Sheffield CCG,31/08/2018,C&M-GMS PCO Other,PRC DELEGATED CO-COMMISSIONING,STANNINGTON MEDICAL CENTRE,23628925,257.66 
Department of Health,NHS Sheffield CCG,31/08/2018,C&M-GMS Prem Notional Rent,PRC DELEGATED CO-COMMISSIONING,STANNINGTON MEDICAL CENTRE,23628925,"2,575.00 "
Department of Health,NHS Sheffield CCG,31/08/2018,C&M-GMS Prem Rates,PRC DELEGATED CO-COMMISSIONING,STANNINGTON MEDICAL CENTRE,23628925,368.00 
Department of Health,NHS Sheffield CCG,31/08/2018,C&M-GMS Prof Fees Prescribing,PRC DELEGATED CO-COMMISSIONING,STANNINGTON MEDICAL CENTRE,23628925,101.20 
Department of Health,NHS Sheffield CCG,31/08/2018,C&M-GMS QOF Aspiration,PRC DELEGATED CO-COMMISSIONING,STANNINGTON MEDICAL CENTRE,23628925,"2,850.04 "
Department of Health,NHS Sheffield CCG,31/08/2018,C&M-GMS Cost of Drugs -Prescribing,LOCAL ENHANCED SERVICES,STONECROFT MEDICAL CENTRE,23628921,"1,708.10 "
Department of Health,NHS Sheffield CCG,31/08/2018,C&M-GMS DES Minor Surgery,PRC DELEGATED CO-COMMISSIONING,STONECROFT MEDICAL CENTRE,23628921,800.00 
Department of Health,NHS Sheffield CCG,31/08/2018,C&M-GMS Global Sum,PRC DELEGATED CO-COMMISSIONING,STONECROFT MEDICAL CENTRE,23628921,"31,210.37 "
Department of Health,NHS Sheffield CCG,31/08/2018,C&M-GMS MPIG Correction Factor,PRC DELEGATED CO-COMMISSIONING,STONECROFT MEDICAL CENTRE,23628921,618.25 
Department of Health,NHS Sheffield CCG,31/08/2018,C&M-GMS PCO Other,PRC DELEGATED CO-COMMISSIONING,STONECROFT MEDICAL CENTRE,23628921,315.78 
Department of Health,NHS Sheffield CCG,31/08/2018,C&M-GMS Prem Notional Rent,PRC DELEGATED CO-COMMISSIONING,STONECROFT MEDICAL CENTRE,23628921,"2,808.33 "
Department of Health,NHS Sheffield CCG,31/08/2018,C&M-GMS Prem Rates,PRC DELEGATED CO-COMMISSIONING,STONECROFT MEDICAL CENTRE,23628921,"1,188.00 "
Department of Health,NHS Sheffield CCG,31/08/2018,C&M-GMS Prof Fees Prescribing,PRC DELEGATED CO-COMMISSIONING,STONECROFT MEDICAL CENTRE,23628921,174.80 
Department of Health,NHS Sheffield CCG,31/08/2018,C&M-GMS QOF Aspiration,PRC DELEGATED CO-COMMISSIONING,STONECROFT MEDICAL CENTRE,23628921,"4,160.47 "
Department of Health,NHS Sheffield CCG,31/08/2018,Cont Care-Physical Disab (<65),CHC ADULT FULLY FUNDED,SUSASH GB LTD T/A EAGLE HOUSE,23364717,"25,330.19 "
Department of Health,NHS Sheffield CCG,31/08/2018,Clinical&Medical-Independent Sector,MENTAL HEALTH CONTRACTS,SUSASH GB LTD T/A EAGLE HOUSE,23364747,"30,092.00 "
Department of Health,NHS Sheffield CCG,31/08/2018,C&M-GMS Cost of Drugs -Prescribing,LOCAL ENHANCED SERVICES,TOTLEY RISE MEDICAL CENTRE,23628927,249.16 
Department of Health,NHS Sheffield CCG,31/08/2018,C&M-GMS DES Minor Surgery,PRC DELEGATED CO-COMMISSIONING,TOTLEY RISE MEDICAL CENTRE,23628927,255.00 
Department of Health,NHS Sheffield CCG,31/08/2018,C&M-GMS Global Sum,PRC DELEGATED CO-COMMISSIONING,TOTLEY RISE MEDICAL CENTRE,23628927,"23,599.83 "
Department of Health,NHS Sheffield CCG,31/08/2018,C&M-GMS MPIG Correction Factor,PRC DELEGATED CO-COMMISSIONING,TOTLEY RISE MEDICAL CENTRE,23628927,103.13 
Department of Health,NHS Sheffield CCG,31/08/2018,C&M-GMS Prem Notional Rent,PRC DELEGATED CO-COMMISSIONING,TOTLEY RISE MEDICAL CENTRE,23628927,"1,491.67 "
Department of Health,NHS Sheffield CCG,31/08/2018,C&M-GMS Prem Rates,PRC DELEGATED CO-COMMISSIONING,TOTLEY RISE MEDICAL CENTRE,23628927,151.00 
Department of Health,NHS Sheffield CCG,31/08/2018,C&M-GMS Prof Fees Prescribing,PRC DELEGATED CO-COMMISSIONING,TOTLEY RISE MEDICAL CENTRE,23628927,39.10 
Department of Health,NHS Sheffield CCG,31/08/2018,C&M-GMS QOF Aspiration,PRC DELEGATED CO-COMMISSIONING,TOTLEY RISE MEDICAL CENTRE,23628927,"1,881.75 "
Department of Health,NHS Sheffield CCG,31/08/2018,C&M-GMS Cost of Drugs -Prescribing,LOCAL ENHANCED SERVICES,TRAMWAYS MEDICAL CENTRE,23628930,762.68 
Department of Health,NHS Sheffield CCG,31/08/2018,C&M-GMS DES Minor Surgery,PRC DELEGATED CO-COMMISSIONING,TRAMWAYS MEDICAL CENTRE,23628930,"7,925.00 "
Department of Health,NHS Sheffield CCG,31/08/2018,C&M-GMS Global Sum,PRC DELEGATED CO-COMMISSIONING,TRAMWAYS MEDICAL CENTRE,23628930,"60,297.52 "
Department of Health,NHS Sheffield CCG,31/08/2018,C&M-GMS PCO Other,PRC DELEGATED CO-COMMISSIONING,TRAMWAYS MEDICAL CENTRE,23628930,597.78 
Department of Health,NHS Sheffield CCG,31/08/2018,C&M-GMS Prem Cost Rent,PRC DELEGATED CO-COMMISSIONING,TRAMWAYS MEDICAL CENTRE,23628930,"4,012.75 "
Department of Health,NHS Sheffield CCG,31/08/2018,C&M-GMS Prem Rates,PRC DELEGATED CO-COMMISSIONING,TRAMWAYS MEDICAL CENTRE,23628930,980.00 
Department of Health,NHS Sheffield CCG,31/08/2018,C&M-GMS Prof Fees Prescribing,PRC DELEGATED CO-COMMISSIONING,TRAMWAYS MEDICAL CENTRE,23628930,142.60 
Department of Health,NHS Sheffield CCG,31/08/2018,C&M-GMS QOF Aspiration,PRC DELEGATED CO-COMMISSIONING,TRAMWAYS MEDICAL CENTRE,23628930,"5,780.50 "
Department of Health,NHS Sheffield CCG,31/08/2018,External Consultancy Fees,CLINICAL LEADS,TRANSFORMING CARE LTD,23707348,"24,150.00 "
Department of Health,NHS Sheffield CCG,31/08/2018,Cont Care-Funded Nursing Care Allow,FUNDED NURSING CARE,ULTIMA CARE CENTRES (NO1) LTD,23364764,"37,416.00 "
Department of Health,NHS Sheffield CCG,31/08/2018,C&M-PMS Contract Value,PRC DELEGATED CO-COMMISSIONING,UNIVERSITY HEALTH SERVICE,23396745,"158,165.14 "
Department of Health,NHS Sheffield CCG,31/08/2018,C&M-PMS DES Minor Surgery,PRC DELEGATED CO-COMMISSIONING,UNIVERSITY HEALTH SERVICE,23396745,"1,870.00 "
Department of Health,NHS Sheffield CCG,31/08/2018,C&M-PMS Out of Hours Opt Outs,PRC DELEGATED CO-COMMISSIONING,UNIVERSITY HEALTH SERVICE,23396745,670.06 
Department of Health,NHS Sheffield CCG,31/08/2018,C&M-PMS Prem Notional Rent,PRC DELEGATED CO-COMMISSIONING,UNIVERSITY HEALTH SERVICE,23396745,"15,833.33 "
Department of Health,NHS Sheffield CCG,31/08/2018,C&M-PMS QOF Aspiration,PRC DELEGATED CO-COMMISSIONING,UNIVERSITY HEALTH SERVICE,23396745,"3,984.72 "
Department of Health,NHS Sheffield CCG,31/08/2018,Other Research Exp,CLINICAL GOVERNANCE,UNIVERSITY OF SHEFFIELD,23287010,"64,581.63 "
Department of Health,NHS Sheffield CCG,31/08/2018,C&M-GMS Cost of Drugs -Prescribing,LOCAL ENHANCED SERVICES,UPPERTHORPE MEDICAL CENTRE,23628935,"3,087.71 "
Department of Health,NHS Sheffield CCG,31/08/2018,C&M-GMS DES Minor Surgery,PRC DELEGATED CO-COMMISSIONING,UPPERTHORPE MEDICAL CENTRE,23628935,"1,175.00 "
Department of Health,NHS Sheffield CCG,31/08/2018,C&M-GMS Global Sum,PRC DELEGATED CO-COMMISSIONING,UPPERTHORPE MEDICAL CENTRE,23628935,"79,008.77 "
Department of Health,NHS Sheffield CCG,31/08/2018,C&M-GMS MPIG Correction Factor,PRC DELEGATED CO-COMMISSIONING,UPPERTHORPE MEDICAL CENTRE,23628935,"1,325.74 "
Department of Health,NHS Sheffield CCG,31/08/2018,C&M-GMS Prem Notional Rent,PRC DELEGATED CO-COMMISSIONING,UPPERTHORPE MEDICAL CENTRE,23628935,"2,497.83 "
Department of Health,NHS Sheffield CCG,31/08/2018,C&M-GMS Prem Rates,PRC DELEGATED CO-COMMISSIONING,UPPERTHORPE MEDICAL CENTRE,23628935,"2,338.00 "
Department of Health,NHS Sheffield CCG,31/08/2018,C&M-GMS Prem Water Rates,PRC DELEGATED CO-COMMISSIONING,UPPERTHORPE MEDICAL CENTRE,23628935,274.43 
Department of Health,NHS Sheffield CCG,31/08/2018,C&M-GMS Prof Fees Prescribing,PRC DELEGATED CO-COMMISSIONING,UPPERTHORPE MEDICAL CENTRE,23628935,317.40 
Department of Health,NHS Sheffield CCG,31/08/2018,C&M-GMS QOF Aspiration,PRC DELEGATED CO-COMMISSIONING,UPPERTHORPE MEDICAL CENTRE,23628935,"8,681.64 "
Department of Health,NHS Sheffield CCG,31/08/2018,C&M-PMS Contract Value,PRC DELEGATED CO-COMMISSIONING,UPWELL STREET SURGERY,23396746,"36,778.85 "
Department of Health,NHS Sheffield CCG,31/08/2018,C&M-PMS DES Minor Surgery,PRC DELEGATED CO-COMMISSIONING,UPWELL STREET SURGERY,23396746,360.00 
Department of Health,NHS Sheffield CCG,31/08/2018,C&M-PMS Out of Hours Opt Outs,PRC DELEGATED CO-COMMISSIONING,UPWELL STREET SURGERY,23396746,33.60 
Department of Health,NHS Sheffield CCG,31/08/2018,C&M-PMS PCO Other,PRC DELEGATED CO-COMMISSIONING,UPWELL STREET SURGERY,23396746,"1,072.33 "
Department of Health,NHS Sheffield CCG,31/08/2018,C&M-PMS Prem Notional Rent,PRC DELEGATED CO-COMMISSIONING,UPWELL STREET SURGERY,23396746,"8,137.50 "
Department of Health,NHS Sheffield CCG,31/08/2018,C&M-PMS Prem Rates,PRC DELEGATED CO-COMMISSIONING,UPWELL STREET SURGERY,23396746,"1,265.00 "
Department of Health,NHS Sheffield CCG,31/08/2018,C&M-PMS QOF Aspiration,PRC DELEGATED CO-COMMISSIONING,UPWELL STREET SURGERY,23396746,"4,294.99 "
Department of Health,NHS Sheffield CCG,31/08/2018,C&M-PMS Contract Value,PRC DELEGATED CO-COMMISSIONING,VALLEY MEDICAL CENTRE,23396748,"77,153.32 "
Department of Health,NHS Sheffield CCG,31/08/2018,C&M-PMS DES Minor Surgery,PRC DELEGATED CO-COMMISSIONING,VALLEY MEDICAL CENTRE,23396748,"2,845.00 "
Department of Health,NHS Sheffield CCG,31/08/2018,C&M-PMS Out of Hours Opt Outs,PRC DELEGATED CO-COMMISSIONING,VALLEY MEDICAL CENTRE,23396748,11.52 
Department of Health,NHS Sheffield CCG,31/08/2018,C&M-PMS PCO Locum Adop/Pat/Mat,PRC DELEGATED CO-COMMISSIONING,VALLEY MEDICAL CENTRE,23396748,"4,988.89 "
Department of Health,NHS Sheffield CCG,31/08/2018,C&M-PMS Prem Water Rates,PRC DELEGATED CO-COMMISSIONING,VALLEY MEDICAL CENTRE,23396748,362.03 
Department of Health,NHS Sheffield CCG,31/08/2018,C&M-PMS QOF Aspiration,PRC DELEGATED CO-COMMISSIONING,VALLEY MEDICAL CENTRE,23396748,"8,516.48 "
Department of Health,NHS Sheffield CCG,31/08/2018,C&M-GMS Cost of Drugs -Prescribing,LOCAL ENHANCED SERVICES,WALKLEY HOUSE MEDICAL CENTRE,23628944,"1,145.60 "
Department of Health,NHS Sheffield CCG,31/08/2018,C&M-GMS DES Minor Surgery,PRC DELEGATED CO-COMMISSIONING,WALKLEY HOUSE MEDICAL CENTRE,23628944,"1,265.00 "
Department of Health,NHS Sheffield CCG,31/08/2018,C&M-GMS Global Sum,PRC DELEGATED CO-COMMISSIONING,WALKLEY HOUSE MEDICAL CENTRE,23628944,"82,768.51 "
Department of Health,NHS Sheffield CCG,31/08/2018,C&M-GMS Prem Notional Rent,PRC DELEGATED CO-COMMISSIONING,WALKLEY HOUSE MEDICAL CENTRE,23628944,"5,635.50 "
Department of Health,NHS Sheffield CCG,31/08/2018,C&M-GMS Prem Rates,PRC DELEGATED CO-COMMISSIONING,WALKLEY HOUSE MEDICAL CENTRE,23628944,"1,779.00 "
Department of Health,NHS Sheffield CCG,31/08/2018,C&M-GMS Prof Fees Prescribing,PRC DELEGATED CO-COMMISSIONING,WALKLEY HOUSE MEDICAL CENTRE,23628944,142.60 
Department of Health,NHS Sheffield CCG,31/08/2018,C&M-GMS QOF Aspiration,PRC DELEGATED CO-COMMISSIONING,WALKLEY HOUSE MEDICAL CENTRE,23628944,"8,592.68 "
Department of Health,NHS Sheffield CCG,31/08/2018,C&M-GMS Cost of Drugs -Prescribing,LOCAL ENHANCED SERVICES,WHITE HOUSE SURGERY SHEFFIELD,23628942,507.63 
Department of Health,NHS Sheffield CCG,31/08/2018,C&M-GMS DES Minor Surgery,PRC DELEGATED CO-COMMISSIONING,WHITE HOUSE SURGERY SHEFFIELD,23628942,320.00 
Department of Health,NHS Sheffield CCG,31/08/2018,C&M-GMS Global Sum,PRC DELEGATED CO-COMMISSIONING,WHITE HOUSE SURGERY SHEFFIELD,23628942,"48,816.24 "
Department of Health,NHS Sheffield CCG,31/08/2018,C&M-GMS MPIG Correction Factor,PRC DELEGATED CO-COMMISSIONING,WHITE HOUSE SURGERY SHEFFIELD,23628942,"1,391.30 "
Department of Health,NHS Sheffield CCG,31/08/2018,C&M-GMS Prem Notional Rent,PRC DELEGATED CO-COMMISSIONING,WHITE HOUSE SURGERY SHEFFIELD,23628942,"9,104.17 "
Department of Health,NHS Sheffield CCG,31/08/2018,C&M-GMS Prem Rates,PRC DELEGATED CO-COMMISSIONING,WHITE HOUSE SURGERY SHEFFIELD,23628942,"2,211.00 "
Department of Health,NHS Sheffield CCG,31/08/2018,C&M-GMS Prof Fees Prescribing,PRC DELEGATED CO-COMMISSIONING,WHITE HOUSE SURGERY SHEFFIELD,23628942,163.30 
Department of Health,NHS Sheffield CCG,31/08/2018,C&M-GMS QOF Aspiration,PRC DELEGATED CO-COMMISSIONING,WHITE HOUSE SURGERY SHEFFIELD,23628942,"6,017.46 "
Department of Health,NHS Sheffield CCG,31/08/2018,Cont Care-Physical Disab (<65),CHC ADULT FULLY FUNDED,WILLOWBECK HEALTH CARE LTD,23343769,"130,189.00 "
Department of Health,NHS Sheffield CCG,31/08/2018,C&M-PMS Contract Value,PRC DELEGATED CO-COMMISSIONING,WINCOBANK MEDICAL CENTRE,23396752,"60,970.28 "
Department of Health,NHS Sheffield CCG,31/08/2018,C&M-PMS Out of Hours Opt Outs,PRC DELEGATED CO-COMMISSIONING,WINCOBANK MEDICAL CENTRE,23396752,6.43 
Department of Health,NHS Sheffield CCG,31/08/2018,C&M-PMS Prem Healthcentre Rent,PRC DELEGATED CO-COMMISSIONING,WINCOBANK MEDICAL CENTRE,23396752,"44,024.50 "
Department of Health,NHS Sheffield CCG,31/08/2018,C&M-PMS Prem Rates,PRC DELEGATED CO-COMMISSIONING,WINCOBANK MEDICAL CENTRE,23396752,"3,140.00 "
Department of Health,NHS Sheffield CCG,31/08/2018,C&M-PMS QOF Aspiration,PRC DELEGATED CO-COMMISSIONING,WINCOBANK MEDICAL CENTRE,23396752,"6,309.99 "
Department of Health,NHS Sheffield CCG,31/08/2018,C&M-PMS Contract Value,PRC DELEGATED CO-COMMISSIONING,WOODHOUSE HEALTH CENTRE,23396750,"98,614.64 "
Department of Health,NHS Sheffield CCG,31/08/2018,C&M-PMS DES Minor Surgery,PRC DELEGATED CO-COMMISSIONING,WOODHOUSE HEALTH CENTRE,23396750,"2,760.00 "
Department of Health,NHS Sheffield CCG,31/08/2018,C&M-PMS Prem Notional Rent,PRC DELEGATED CO-COMMISSIONING,WOODHOUSE HEALTH CENTRE,23396750,"6,338.58 "
Department of Health,NHS Sheffield CCG,31/08/2018,C&M-PMS Prem Water Rates,PRC DELEGATED CO-COMMISSIONING,WOODHOUSE HEALTH CENTRE,23396750,841.99 
Department of Health,NHS Sheffield CCG,31/08/2018,C&M-PMS QOF Aspiration,PRC DELEGATED CO-COMMISSIONING,WOODHOUSE HEALTH CENTRE,23396750,"13,695.89 "
Department of Health,NHS Sheffield CCG,31/08/2018,C&M-PMS Contract Value,PRC DELEGATED CO-COMMISSIONING,WOODSEATS MEDICAL CENTRE,23419309,"74,917.39 "
Department of Health,NHS Sheffield CCG,31/08/2018,C&M-PMS DES Minor Surgery,PRC DELEGATED CO-COMMISSIONING,WOODSEATS MEDICAL CENTRE,23419309,"3,725.00 "
Department of Health,NHS Sheffield CCG,31/08/2018,C&M-PMS PCO Other,PRC DELEGATED CO-COMMISSIONING,WOODSEATS MEDICAL CENTRE,23419309,661.44 
Department of Health,NHS Sheffield CCG,31/08/2018,C&M-PMS Prem Notional Rent,PRC DELEGATED CO-COMMISSIONING,WOODSEATS MEDICAL CENTRE,23419309,"11,666.67 "
Department of Health,NHS Sheffield CCG,31/08/2018,C&M-PMS Prem Rates,PRC DELEGATED CO-COMMISSIONING,WOODSEATS MEDICAL CENTRE,23419309,"3,032.00 "
Department of Health,NHS Sheffield CCG,31/08/2018,C&M-PMS Prem Water Rates,PRC DELEGATED CO-COMMISSIONING,WOODSEATS MEDICAL CENTRE,23419309,321.14 
Department of Health,NHS Sheffield CCG,31/08/2018,C&M-PMS QOF Aspiration,PRC DELEGATED CO-COMMISSIONING,WOODSEATS MEDICAL CENTRE,23419309,"7,979.47 "
Department of Health,NHS Sheffield CCG,31/08/2018,Hcare Srv Rec Fdtn Trust-Non Contract,NCAS/OATS,YORK TEACHING HOSPITAL NHS FOUNDATION TRUST,23343553,"32,357.57 "
Department of Health,NHS Sheffield CCG,31/08/2018,Hcare Srv Rec NHS Trust-Contract Baseline,PATIENT TRANSPORT,YORKSHIRE AMBULANCE SERVICE NHS TRUST,23382098,"255,744.52 "
Department of Health,NHS Sheffield CCG,31/08/2018,Hcare Srv Rec NHS Trust-CQUIN,AMBULANCE SERVICES,YORKSHIRE AMBULANCE SERVICE NHS TRUST,23382102,"34,499.00 "
Department of Health,NHS Sheffield CCG,31/08/2018,Hcare Srv Rec NHS Trust-Contract Baseline,AMBULANCE SERVICES,YORKSHIRE AMBULANCE SERVICE NHS TRUST,23382107,"124,103.00 "
Department of Health,NHS Sheffield CCG,31/08/2018,Hcare Srv Rec NHS Trust-Contract Baseline,NHS 111,YORKSHIRE AMBULANCE SERVICE NHS TRUST,23382112,"114,923.00 "
Department of Health,NHS Sheffield CCG,31/08/2018,Hcare Srv Rec NHS Trust-Contract Baseline,AMBULANCE SERVICES,YORKSHIRE AMBULANCE SERVICE NHS TRUST,23382117,"1,509,029.00 "
